Cogmind - Beta 13 --- EXPLORER MODE // 2024.04.28 @ 21:09:31 Player: Big Tortoise Result: Destroyed by P-80 Master with Gamma Rifle Performance ------------- Evolutions (9) 4500 Regions Visited (34) 6800 Robots Destroyed (727) 3635 Value Destroyed (52408) 52408 Prototype IDs (113) 2260 Alien Tech Used (18) 3600 Bonus (30940) 30940 TOTAL SCORE: 104143 Bonus ------- Triggered High Security 500 High Alert Combat Kills 16256 Follower Combat Kills 4615 Entered Garrisons 800 Used RIF Installer 3000 Met Data Miner 300 Found Hidden Lab 3000 Scanned by Researcher 500 Pursued by Intercept 3000 Friendly Fire -1031 Cogmind --------- Core Integrity 0/1600 Matter 245/425 Energy 100/100 System Corruption 1% Temperature Cool (0) Movement Core (50) Location -1/Command Parts ------- > --- POWER (3) -------- (None) > --- PROPULSION (6) --- (None) > --- UTILITY (13) ----- (None) > --- WEAPON (4) ------- (None) > --- INVENTORY (5) ---- Improved Matter Compressor (300) Relay Coupler [Sentry] (41) Relay Coupler [Behemoth] (16) Enhanced Nova Cannon Peak State ------------ > --- POWER ------------ Heavy Antimatter Reactor Particle Reactor Quantum Reactor > --- PROPULSION ------- Advanced Heavy Treads Experimental Biometal Heavy Treads Experimental Biometal Heavy Treads > --- UTILITY ---------- High-capacity Storage Unit Improved Matter Compressor Advanced Target Analyzer Advanced Target Analyzer Core Analyzer Light Regenerative Plating Graphene Brace Beam Splitter Deep Network Scanner Improved System Shield Ghost Barrier Relay Coupler [Sentry] Advanced Corruption Screen > --- WEAPON ----------- Cooled Nova Cannon Null Cannon Omega Cannon > --- INVENTORY -------- Phase Redirector Relay Coupler [Swarmer] Relay Coupler [Grunt] Relay Coupler [Sentry] Relay Coupler [Behemoth] Long-range Tractor Beam High-powered Transdimensional Reconstructor Integrity Redistributor Integrity Redistributor Subatomic Replicator Terrabomb LRC Matter Compressor LRC Insulator Linked Autogun Sigix Terminator Advanced Remote Datajack Sigix Broadsword [Rating: 239] Favorites ----------- Power Quantum Reactor Engine Light Ion Engine Power Core Light Nuclear Core Reactor Quantum Reactor Propulsion Biometal Heavy Treads Treads Biometal Heavy Treads Leg Aluminum Leg Wheel Centrium Wheel Utility Relay Coupler [Grunt] Device Advanced Cooling System Storage High-capacity Storage Unit Processor Advanced Target Analyzer Hackware Relay Coupler [Grunt] Protection Light Regenerative Plating Artifact Phase Redirector Weapon Heavy Hardcell Cannon Energy Gun Medium Laser Energy Cannon Enhanced Nova Cannon Ballistic Gun Heavy Assault Rifle Ballistic Cannon Heavy Hardcell Cannon Launcher Grenade Launcher Special Weapon Improved Remote Datajack Impact Weapon Great Maul Slashing Weapon Sigix Broadsword Build | -11 -10 -10 -9 -9 -9 -8 -8 -8 -8 -8 -7 -7 -6 -6 -6 -6 -5 -5 -5 -5 -5 -5 -5 -4 -4 -4 -4 -3 -3 -2 -2 -2 -1 -1 ------- Run | Yrd Mat Min Mat Min Exi Min Mat Gar Mat Gar Fac Gar Fac Low Low Dat Pro Fac Gar Fac Upp Upp Zhi Pro Fac Arm Lab Res Qua Res Tes Sec Acc Com Slots Evolved 18 | . 1 . 2 . . . 2 . . . 2 . 2 . . . . 2 . . . . . . 2 . . 2 . 2 . . 1 . Power 2 | . . . . . . . . . . . . . . . . . . . . . . . . . . . . 1 . . . . 1 . Propulsion 4 | . . . 1 . . . . . . . . . 1 . . . . . . . . . . . . . . . . 2 . . . . Utility 10 | . 1 . 1 . . . 1 . . . 2 . 1 . . . . 2 . . . . . . 2 . . . . . . . . . Weapon 2 | . . . . . . . 1 . . . . . . . . . . . . . . . . . . . . 1 . . . . . . Parts Attached 480 | 8 2 1 14 3 . 3 11 18 3 11 7 11 24 1 2 1 5 19 9 18 5 . 6 1 12 29 11 30 38 37 60 18 24 38 Power 41 | 1 . . 2 . . 1 1 1 . 2 . 2 1 . . . 1 1 . 3 . . 1 . . 2 . 1 3 6 4 . 4 4 Engine 7 | 1 . . 2 . . 1 . . . . . 1 . . . . 1 . . . . . . . . . . . . . . . 1 . Core 6 | . . . . . . . 1 1 . 2 . . . . . . . 1 . 1 . . . . . . . . . . . . . . Reactor 28 | . . . . . . . . . . . . 1 1 . . . . . . 2 . . 1 . . 2 . 1 3 6 4 . 3 4 Propulsion 59 | 2 . . 5 2 . 1 3 2 . . 1 . 4 . . . 2 4 1 3 . . 2 . 3 2 . 2 1 4 3 4 2 6 Treads 37 | . . . . . . . 2 1 . . . . 3 . . . 1 2 1 1 . . . . 2 2 . 2 1 4 3 4 2 6 Leg 10 | 2 . . 4 2 . 1 . . . . . . . . . . . . . . . . 1 . . . . . . . . . . . Wheel 12 | . . . 1 . . . 1 1 . . 1 . 1 . . . 1 2 . 2 . . 1 . 1 . . . . . . . . . Hover . | . . . . . . . . . . . . . . . . . . . . . . . . . . . . . . . . . . . Flight . | . . . . . . . . . . . . . . . . . . . . . . . . . . . . . . . . . . . Utility 234 | 3 1 1 6 . . . 3 4 2 4 6 9 14 . 2 . 2 12 7 8 4 . 3 . 7 17 3 19 19 14 24 12 14 14 Device 124 | 1 1 1 3 . . . 2 . . . 3 . 6 . 2 . 1 4 1 2 4 . 2 . 5 12 1 15 13 9 18 5 6 7 Storage 8 | 1 . . 1 . . . . . . . . . 1 . . . . . . . . . 1 . . . . 1 . 2 . 1 . . Processor 15 | 1 . . . . . . . . . . . 1 . . . . . . . . . . . . . 1 . 3 2 1 1 1 2 2 Hackware 46 | . . . . . . . . . 2 2 2 7 5 . . . . 6 5 3 . . . . 1 2 1 . 1 2 3 1 2 1 Protection 37 | . . . 2 . . . 1 4 . 2 1 1 2 . . . 1 2 1 3 . . . . 1 2 1 . 2 . 1 3 3 4 Artifact 4 | . . . . . . . . . . . . . . . . . . . . . . . . . . . . . 1 . 1 1 1 . Weapon 146 | 2 1 . 1 1 . 1 4 11 1 5 . . 5 1 . 1 . 2 1 4 1 . . 1 2 8 8 8 15 13 29 2 4 14 Energy Gun 12 | 1 1 . 1 . . . 1 . . . . . . . . . . . . . . . . . . . 1 . . 4 1 . 1 1 Energy Cannon 33 | . . . . . . . . . . . . . . . . . . . . . . . . . . 3 5 4 5 4 6 . 1 5 Ballistic Gun 28 | 1 . . . 1 . . 2 4 . 1 . . 3 . . . . . 1 1 1 . . . 1 1 . . . 1 8 . 1 1 Ballistic Cannon 17 | . . . . . . . . . . 2 . . 1 . . 1 . 1 . 1 . . . . 1 1 . . 5 1 2 1 . . Launcher 9 | . . . . . . 1 1 2 . . . . 1 . . . . . . 1 . . . . . . . . 1 . 1 . . 1 Special Weapon 25 | . . . . . . . . . 1 1 . . . 1 . . . 1 . 1 . . . 1 . 2 2 4 1 . 5 1 . 4 Impact Weapon 7 | . . . . . . . . 5 . 1 . . . . . . . . . . . . . . . . . . 1 . . . . . Slashing Weapon 15 | . . . . . . . . . . . . . . . . . . . . . . . . . . 1 . . 2 3 6 . 1 2 Piercing Weapon . | . . . . . . . . . . . . . . . . . . . . . . . . . . . . . . . . . . . Special Melee Weapon . | . . . . . . . . . . . . . . . . . . . . . . . . . . . . . . . . . . . Unidentified Prototypes 42 | . 1 . . . . . . . . . . . 1 . . . . . . . . . 4 . . 2 4 3 11 3 7 2 . 4 Parts Lost 46 | . . . 4 . . . . . . . . 1 1 . 1 . 2 . . 1 . . . . . 2 . . . 7 1 2 4 20 Power 9 | . . . 1 . . . . . . . . . . . . . 1 . . . . . . . . 1 . . . . . . 2 4 Propulsion 6 | . . . . . . . . . . . . . . . . . . . . . . . . . . . . . . 2 . . . 4 Utility 22 | . . . 2 . . . . . . . . 1 1 . 1 . 1 . . 1 . . . . . 1 . . . 4 1 2 . 7 Weapon 9 | . . . 1 . . . . . . . . . . . . . . . . . . . . . . . . . . 1 . . 2 5 Highest Loss Streak 12 | . . . 3 . . . . . . . . 1 1 . 1 . 2 . . 1 . . . . . 1 . . . 2 1 2 2 12 To Critical Strikes . | . . . . . . . . . . . . . . . . . . . . . . . . . . . . . . . . . . . Average Slot Usage (%) 86 | . 96 100 97 99 100 100 98 99 100 99 92 91 86 87 87 81 82 81 83 86 88 88 87 88 89 85 79 85 85 81 79 83 79 81 Engine 1 | . 12 12 10 10 10 10 6 . . . . 1 . . . . 1 . . . . . . . . . . . . . . . 1 . Core 1 | . . . . . . . 1 8 8 8 7 2 . . . . . 4 5 2 . . . . . . . . . . . . . . Reactor 4 | . . . . . . . . . . . . 2 5 6 6 6 4 . . 2 5 5 5 5 5 4 4 8 7 8 7 8 7 8 Treads 8 | . . . . . . . 7 16 16 16 7 7 11 12 12 12 7 4 5 4 5 5 5 5 4 9 9 7 8 10 11 11 11 10 Leg 2 | . 25 25 29 30 30 30 14 . . . . . . . . . . . . . . . . . . . . . . . . . . . Wheel 3 | . . . . . . . 3 8 8 8 7 7 5 6 6 6 6 4 5 9 11 11 11 11 9 1 . . . . . . . . Device 11 | . 8 21 20 20 20 20 24 16 16 11 12 7 8 6 8 12 12 10 5 3 6 11 10 11 10 13 15 15 11 12 13 5 4 4 Storage 5 | . 12 12 10 10 10 10 8 8 8 8 7 7 6 6 6 6 6 5 5 5 5 5 5 5 5 5 4 4 4 4 4 4 4 3 Processor 3 | . 12 3 . . . . . . . . . . . . . . . . . . . . . . . . . . 6 4 8 15 15 15 Hackware 21 | . . . . . . . . . 4 16 20 26 26 31 28 25 25 31 33 35 36 33 33 33 34 31 24 26 23 22 21 21 15 13 Protection 7 | . . . 7 10 10 10 8 15 11 4 8 7 6 6 6 6 6 5 10 8 5 5 5 5 10 8 9 8 7 8 4 3 5 6 Energy Gun 1 | . 12 12 15 11 10 6 1 . . . . . . . . . . . . . . . . . . . . . . 2 . . . 2 Energy Cannon 2 | . . . . . . . . . . . . . . . . . . . . . . . . . . 2 4 6 8 5 2 8 5 8 Ballistic Gun 3 | . 12 12 4 8 10 10 21 20 16 11 . . 1 1 . . . . 1 2 1 5 5 3 . 2 . . . . 3 . . . Ballistic Cannon 3 | . . . . . . . . . . 4 14 14 8 6 6 . 6 4 5 4 5 5 5 5 4 4 4 4 3 . 1 4 2 . Special Weapon 1 | . . . . . . . . . 2 6 7 7 3 4 6 6 6 5 3 3 3 . . 1 4 . . 1 . . . . . . Naked Turns 4 | . . . . . . . . . . . . . . . . . . . . . . . . . . . . . . . . . . 4 Heaviest Build 186 | 16 18 19 35 33 33 34 63 81 63 60 76 76 112 90 87 86 90 109 94 94 88 88 94 94 102 124 117 186 178 143 134 137 155 162 Greatest Support 255 | 20 20 20 33 36 36 39 39 40 16 40 28 28 60 60 60 28 28 70 70 60 60 32 32 60 60 155 155 155 155 215 230 255 255 240 Greatest Overweight (x) 5 | . . . 2 . . . 3 5 3 3 3 3 3 3 3 3 3 3 3 5 2 2 5 2 3 3 . 1 1 2 . . . 1 Average Overweight (x) 1 | . . . . . . . . 3 2 1 2 2 2 2 2 2 3 2 2 2 1 2 2 1 2 . . . . . . . . . Largest Inventory Capacity 20 | 10 10 10 15 15 15 15 15 15 15 15 15 15 20 20 20 20 20 20 20 20 20 20 20 20 20 20 20 20 20 20 20 20 20 20 Average Capacity 18 | 7 10 10 13 15 15 15 15 15 15 15 15 15 18 20 20 20 20 20 20 20 20 20 20 20 20 20 20 20 20 20 20 20 20 19 Most Carried 20 | 5 9 9 15 15 15 15 15 15 15 15 15 15 20 20 20 20 20 20 20 20 18 17 20 20 19 20 20 20 20 20 20 20 20 20 Average Carried 17 | 2 7 9 12 14 15 14 14 14 15 14 13 14 17 20 19 20 19 19 19 19 17 17 18 20 18 19 19 18 19 19 19 19 19 17 Final Capacity 20 | 10 10 10 15 15 15 15 15 15 15 15 15 15 20 20 20 20 20 20 20 20 20 20 20 20 20 20 20 20 20 20 20 20 20 20 Final Carried 20 | 5 9 9 15 15 15 15 15 15 15 15 13 15 20 20 20 20 18 20 20 18 17 17 20 20 19 19 20 19 20 20 19 20 18 19 Class Distribution -------------------- 42% | Botlord-Tank 16% | Wizard-Gunner 12% | Botlord-Gunner 9% | Hacker-Mutant 4% | Botlord-Mutant 4% | Wizard-Mutant 3% | Hacker-Tank Dominant Class ---------------- Hacker-Mutant | -10/Materials Hacker-Mutant | -10/Mines Hacker-Mutant | -9/Materials Hacker-Mutant | -9/Mines Hacker-Mutant | -9/Exiles Hacker-Mutant | -8/Mines Hacker-Skirmisher | -8/Materials Hacker-Tank | -8/Garrison Bothacker-Mutant | -8/Materials Bothacker-Tank | -8/Garrison Botlord-Tank | -7/Factory Botlord-Tank | -7/Garrison Botlord-Tank | -6/Factory Botlord-Gunner | -6/Lower Caves Botlord-Tank | -6/Lower Caves Botlord-Mutant | -6/Data Miner Botlord-Gunner | -5/Proximity Caves Botlord-Tank | -5/Factory Botlord-Tank | -5/Garrison Botlord-Tank | -5/Factory Botlord-Skirmisher | -5/Upper Caves Botlord-Tank | -5/Upper Caves Botlord-Tank | -5/Zhirov Botlord-Tank | -4/Proximity Caves Botlord-Tank | -4/Factory Botlord-Tank | -4/Armory Botlord-Tank | -4/Lab Botlord-Tank | -3/Research Botlord-Tank | -3/Quarantine Botlord-Gunner | -2/Research Wizard-Gunner | -2/Testing Wizard-Gunner | -2/Section 7 Wizard-Gunner | -1/Access Wizard-Gunner | -1/Command Resources | -11 -10 -10 -9 -9 -9 -8 -8 -8 -8 -8 -7 -7 -6 -6 -6 -6 -5 -5 -5 -5 -5 -5 -5 -4 -4 -4 -4 -3 -3 -2 -2 -2 -1 -1 ----------- Run | Yrd Mat Min Mat Min Exi Min Mat Gar Mat Gar Fac Gar Fac Low Low Dat Pro Fac Gar Fac Upp Upp Zhi Pro Fac Arm Lab Res Qua Res Tes Sec Acc Com Matter Collected 18605 | 251 61 13 170 81 . 28 283 669 105 346 373 451 924 264 101 . 190 897 497 489 549 174 . 368 758 1267 83 1650 847 935 1895 1860 1496 530 Remotely 1493 | . . . . . . . . . . . . . . . . . . . . . . . . . 270 . . . . . 504 170 429 120 Salvage Created 30560 | . 170 56 825 544 . 99 277 903 237 215 423 189 633 373 152 . 80 738 246 497 559 205 . 332 851 1008 . 2856 1118 3217 3511 3272 2576 4398 Parts 1258 | . 14 9 43 34 . 12 18 68 11 14 26 12 24 12 3 . 1 34 9 27 29 8 . 11 45 45 . 113 35 123 132 93 90 163 Haulers Intercepted 7 | . . . 3 . . . 1 . . . 1 . 1 . . . . . . . . . . . . . . . . . . . 1 . Recyclers Shooed 4 | . . . . 1 . . . . . . 1 . . . . . . . . . . . . . 1 . . . . . . . 1 . Parts Field Recycled . | . . . . . . . . . . . . . . . . . . . . . . . . . . . . . . . . . . . Retrieved Matter . | . . . . . . . . . . . . . . . . . . . . . . . . . . . . . . . . . . . Parts Self-Destructed . | . . . . . . . . . . . . . . . . . . . . . . . . . . . . . . . . . . . Prevented . | . . . . . . . . . . . . . . . . . . . . . . . . . . . . . . . . . . . Kills | -11 -10 -10 -9 -9 -9 -8 -8 -8 -8 -8 -7 -7 -6 -6 -6 -6 -5 -5 -5 -5 -5 -5 -5 -4 -4 -4 -4 -3 -3 -2 -2 -2 -1 -1 ------- Run | Yrd Mat Min Mat Min Exi Min Mat Gar Mat Gar Fac Gar Fac Low Low Dat Pro Fac Gar Fac Upp Upp Zhi Pro Fac Arm Lab Res Qua Res Tes Sec Acc Com Combat Hostiles Destroyed 686 | . 4 2 12 8 . 5 9 25 2 9 9 7 15 10 3 . 5 17 6 12 16 6 . 10 18 24 1 47 19 52 47 66 39 181 Melee 19 | . . . . . . . . . . . . . . . . . . . . . . . . . . 1 . . 4 . 13 . . 1 Guns 122 | . 3 2 11 8 . 2 5 20 2 8 . . 1 . . . . . . . 5 3 . 1 2 2 . . . 14 21 . 3 9 Cannons 379 | . . . . . . . . . . 1 6 7 14 10 3 . 5 17 6 12 11 3 . 8 16 20 1 41 15 37 13 60 31 42 AOE 140 | . 1 . 1 . . 3 4 5 . . 3 . . . . . . . . . . . . 1 . . . 1 . . . . . 121 Classes Destroyed 31 | . 3 1 3 2 . 1 . 2 . . . 1 3 1 . . 1 . . 1 1 . . 1 1 2 . . 1 1 . 3 . 2 Worker 6 | . . . . . . . . . . . . . . . . . . . . . . . . . 1 . . 1 . . . 2 2 . Builder 12 | . . . . 2 . . . . . . 1 . . . . . . . . 1 . . . . . . . 4 . 2 . . 2 . Tunneler 3 | . . 1 . 1 . . . . . . 1 . . . . . . . . . . . . . . . . . . . . . . . Hauler 7 | . . . 3 . . . 1 . . . 1 . 1 . . . . . . . . . . . . . . . . . . . 1 . Recycler 12 | . . . 1 3 . . . . 2 . 1 . . . . . . . . . . . . . 1 . . 1 . . 1 . 2 . Carrier 13 | . . . . . . . . . . . . . . . . . . . . . . . . . . . . . . . . . . 13 Minesweeper 1 | . . . . . . . . . . . . . . . . . . . . . 1 . . . . . . . . . . . . . Mechanic 3 | . . . . . . . . . . . . . 1 . . . . . . . . . . . . . . . . 1 . . . 1 Operator 4 | . . . . . . . . . . . . . . . . . . . . . . . . . . 1 . . . . 2 . 1 . Drone 1 | . . . . . . . . . . . . . . . . . . . . . . . . 1 . . . . . . . . . . Watcher 13 | . 2 . 2 . . . . . . . . . . . . . . 1 . . . . . . 2 1 . . . 1 1 . 2 1 Swarmer 71 | . 2 2 2 4 . 3 5 4 . 4 1 2 1 . . . . 1 2 2 7 3 . 2 2 3 . 1 . 6 . 3 3 6 Cutter 3 | . . . . . . . . . . . . 1 . . . . . . . . . . . . . . . . . . . . . 2 Saboteur 9 | . . . . . . . . . . . . . . . . . . . . . . . . . . 3 . . . . . . . 6 Grunt 191 | . 2 . 7 1 . 1 . 9 . 2 6 4 6 3 2 . . 11 4 5 7 . . 6 5 2 . 15 5 11 13 20 7 37 Brawler 25 | . . . . 1 . . 1 . . . . . 1 . . . . . . . . . . . . . . . . . 1 5 1 15 Duelist 25 | . . . . . . 1 . . . 1 . . 1 . . . . . . . . . . . . 5 . . 1 . . 2 1 13 Protector 10 | . . . . . . . . . . . . . . . . . . . . . . . . . . . . . . 1 1 1 1 6 Researcher 4 | . . . . . . . . . . . . . . . . . . . . . . . . . . . . . . . . 4 . . Sentry 50 | . . . 3 2 . . 3 8 . . 1 . 2 . 1 . 1 2 . 2 1 . . 1 2 2 . 1 . 4 2 6 3 3 Demolisher 11 | . . . . . . . . . . . . . 1 . . . 3 . . . . . . . . 1 . . . . . . . 6 Specialist 18 | . . . . . . . . . . . . . . . . . . . . . . . . . . 2 . . 1 . 2 . . 13 Hunter 79 | . . . . . . . . 1 2 . 1 . 1 . . . . 2 . . . 2 . . 5 5 . 2 2 3 8 3 12 30 Programmer 106 | . . . . . . . . 3 . 2 . . 2 1 . . . 1 1 3 1 . . . 4 2 . 13 3 14 11 8 2 35 Heavy 1 | . . . . . . . . . . . . . 1 . . . . . . . . . . . . . . . . . . . . . Q-Series 5 | . . . . . . . . . . . . . . . . . . . . . . . . . . . . . . . . 1 4 . Behemoth 5 | . . . . . . . . . . . . . . . . . 1 . . . . . . . . . . 1 . 1 . 1 1 . S7 Guard 1 | . . . . . . . . . . . . . . . . . . . . . . . . . . . . . . . . 1 . . Tracker 28 | . . . . . . . . . . . . . . . . . . . . . . . . . . . . 7 3 6 4 5 3 . Combat Programmer 26 | . . . . . . . . . . . . . . . . . . . . . . . . . . . . 7 3 6 4 5 1 . Executioner 4 | . . . . . . . . . . . . . . . . . . . . . . . . . . . . . . . . 4 . . Alpha 7 3 | . . . . . . . . . . . . . . . . . . . . . . . . . . . . . 1 . . 2 . . Protovariant L 1 | . . . . . . . . . . . . . . . . . . . . . . . . . . . . . . . 1 . . . Thug 6 | . . . . . . . . . . . . . . 4 . . . . . . . . . . . . . . . . . . . 2 Butcher 3 | . . . . . . . . . . . . . . 1 . . . . . . . . . . . . . . . . . . . 2 Wizard 1 | . . . . . . . . . . . . . . . . . . . . . . . . . . . . . . . . . . 1 Fireman 1 | . . . . . . . . . . . . . . . . . . . . . . . . . . . . . . . . . . 1 Mutant 5 | . . . . . . . . . . . . . . 1 . . . . . . . 1 . . . . . . . . . . . 3 Infiltrator 1 | . . . . . . . . . . . . . . . . . . . . 1 . . . . . . . . . . . . . . Best Kill Streak 156 | . 2 2 5 3 . 3 3 5 4 3 7 3 4 5 2 . 2 3 2 4 7 3 . 3 9 3 1 9 6 6 7 12 11 156 Combat Bots Only 143 | . 2 2 2 2 . 3 3 5 2 3 3 3 3 5 2 . 2 3 2 4 7 3 . 3 8 3 1 7 6 5 6 10 7 143 Max Kills in Single Turn 133 | . 1 1 2 2 . 2 3 3 2 2 5 2 1 1 1 . 1 1 1 1 1 1 . 2 1 1 1 3 1 2 2 2 2 133 Gunslinging 1 | . . . . . . . . . . 1 . . . . . . . . . . . . . . . . . . . . . . . . Exploded 120 | . 1 . 1 . . 2 3 1 . . 2 . . . . . . . . . . . . 1 . . . 1 . . . . . 120 Melee 1 | . . . . . . . . . . . . . . . . . . . . . . . . . . 1 . . 1 . 1 . . 1 Uniques/NPCs Destroyed 1 | . . . . . . . . . . . . . . . . . . . . . . . . . . . 1 . . . . . . . A5 (-4/Lab) Combat | -11 -10 -10 -9 -9 -9 -8 -8 -8 -8 -8 -7 -7 -6 -6 -6 -6 -5 -5 -5 -5 -5 -5 -5 -4 -4 -4 -4 -3 -3 -2 -2 -2 -1 -1 -------- Run | Yrd Mat Min Mat Min Exi Min Mat Gar Mat Gar Fac Gar Fac Low Low Dat Pro Fac Gar Fac Upp Upp Zhi Pro Fac Arm Lab Res Qua Res Tes Sec Acc Com Hostile Shots Fired 4401 | . 15 10 36 15 . 17 23 80 38 40 14 12 71 22 20 . 45 32 22 30 42 24 . 22 137 102 29 273 208 486 339 439 284 1474 Missed 1089 | . 9 4 8 4 . 6 11 21 9 11 3 3 31 12 11 . 9 16 7 12 13 4 . 7 48 42 4 53 52 104 89 85 53 348 Damage Taken 34211 | . 65 43 407 102 . 72 106 291 65 190 47 186 623 161 97 . 817 229 450 291 313 161 . 139 681 993 316 2197 1450 4442 2612 3114 2554 10997 Core 2545 | . 16 7 39 44 . . 29 18 4 18 12 13 15 19 3 . 129 37 46 10 89 . . . 43 86 24 118 80 226 250 245 127 798 Absorbed by Shields 4029 | . . . . . . . . 183 105 72 12 . 8 . . . . 60 . . 54 63 . 55 270 143 92 881 615 1416 . . . . Reduced by Siege Mode 1748 | . . . . . . . . . . . . . . . . . . . . . . . . . 45 113 65 155 176 316 55 216 180 427 Redirected to Core 6 | . . . . . . . . . . . . . . . . . . . . . . . . . . . . . . . . . 6 . Ignored by Resistances 35391 | . 40 28 247 61 . 48 68 426 250 161 57 142 381 98 61 . 472 169 256 172 215 135 . 115 563 661 238 1818 1235 3446 3187 4844 1842 13955 Regen/Repaired (Parts) 11627 | . . . . . . . 30 . . . . . 167 . . . . 1066 82 807 21 26 . 43 470 142 28 1417 480 1456 978 327 194 3893 Core Remaining (%) 78 | 100 . 90 . . . 79 . . . 87 . 96 . . . . 80 . . . . . . 81 . . 80 . 83 . . 5 . . Volleys Fired 1474 | . 12 3 40 22 . 9 12 48 11 37 23 41 50 26 9 1 37 49 41 40 33 12 . 23 64 62 17 98 57 140 120 131 98 108 Largest 4 | . 2 2 2 2 . 2 3 3 2 2 2 2 2 2 1 1 1 1 2 2 2 2 . 2 2 2 2 3 3 3 2 3 3 4 Hottest 540 | . 70 65 95 95 . 73 96 87 48 114 114 114 116 113 80 5 80 80 113 113 113 113 . 113 113 200 200 320 540 485 330 280 280 447 Shots Fired 2833 | . 24 6 80 44 . 18 36 111 20 61 39 58 74 27 9 1 37 49 46 42 55 24 . 37 80 110 29 256 146 268 139 334 247 326 Gun 829 | . 24 6 80 44 . 16 33 104 17 45 . . 13 1 . . . . 5 1 22 12 . 14 16 20 . . . 118 104 . 50 84 Cannon 1869 | . . . . . . . . . . 5 32 46 46 22 4 . 36 40 30 37 33 12 . 21 58 88 27 253 145 150 25 333 197 229 Launcher 14 | . . . . . . 2 3 7 . . . . 1 . . . . . . . . . . . . . . . . . . . . 1 Special 121 | . . . . . . . . . 3 11 7 12 14 4 5 1 1 9 11 4 . . . 2 6 2 2 3 1 . 10 1 . 12 Kinetic 1321 | . 12 3 37 17 . 9 29 104 17 50 32 46 59 23 4 . 36 40 35 38 55 24 . 35 74 75 12 88 39 50 111 84 74 9 Thermal 1325 | . 7 . 3 22 . 7 4 . . . . . . . . . . . . . . . . . . 33 15 165 106 218 18 249 173 305 Explosive 13 | . . . . . . 2 3 7 . . . . 1 . . . . . . . . . . . . . . . . . . . . . Electromagnetic 53 | . 5 3 40 5 . . . . . . . . . . . . . . . . . . . . . . . . . . . . . . Robot Hit Streak 69 | . 6 9 21 24 . 11 17 69 22 27 24 18 26 9 8 9 17 34 41 32 34 8 . 16 17 23 25 29 60 25 66 36 42 43 Robot Miss Streak 5 | . 1 . 1 1 . 2 1 2 1 2 2 2 2 3 1 . 2 3 2 . 3 1 . 1 2 2 1 2 5 2 2 2 2 2 Penetration Max 2 | . . . . . . . . . . . . 1 1 . . . . . . 1 . . . . 1 1 . . . 2 1 . . . Secondary Targets 6 | . 1 . . . . . . 2 1 2 . . . . . . . . . . . . . . . . . . . . . . . . Max Gunslinging Chain 1 | . 1 . . . . . . 1 1 1 . . . . . . . . . . . . . . . . . . . . . . . . Shots Hit Robots 2193 | . 19 3 62 34 . 11 27 83 19 49 29 32 64 22 8 1 30 44 36 30 37 16 . 33 65 88 25 186 110 223 158 231 190 228 Core Hits 1064 | . 9 3 37 19 . 8 18 58 9 21 9 10 24 7 3 . 9 13 9 12 17 7 . 12 22 38 7 66 36 104 97 103 75 202 Critical Kills 50 | . . . . . . . . 2 . . . . 1 . . . . . . . . 2 . . . 2 . 6 . 7 13 5 5 7 Critical Parts Destroyed 30 | . . . . . . . . . . . . . . . . . . . . 1 . . . 1 . . . . . 9 17 . 1 1 Critical Strikes 184 | . 1 . . 1 . . 1 2 . . 6 2 4 4 . . 3 4 1 3 3 2 . 4 2 4 1 8 6 21 38 19 23 21 Burn 24 | . 1 . . 1 . . 1 . . . . . . . . . . . . . . . . . . . . . . . . . 8 13 Meltdown 25 | . . . . . . . . . . . . . . . . . . . . . . . . . . 1 . 6 . 1 . 5 5 7 Destroy 59 | . . . . . . . . 2 . . . . 1 . . . . . . 1 . 2 . 1 . 1 . . . 17 32 . 1 1 Blast 68 | . . . . . . . . . . . 6 2 3 4 . . 3 4 1 2 3 . . 3 2 2 1 2 4 3 . 14 9 . Sever 8 | . . . . . . . . . . . . . . . . . . . . . . . . . . . . . 2 . 6 . . . Melee Attacks 90 | . . . . . . . . 18 . 5 . . . . . . . . . . . . . . . . . . 12 7 43 . 3 2 Impact 23 | . . . . . . . . 18 . 5 . . . . . . . . . . . . . . . . . . . . . . . . Slashing 67 | . . . . . . . . . . . . . . . . . . . . . . . . . . . . . 12 7 43 . 3 2 Piercing . | . . . . . . . . . . . . . . . . . . . . . . . . . . . . . . . . . . . Sneak Attacks 1 | . . . . . . . . . . . . . . . . . . . . . . . . . . . . . . . 1 . . . Combat Hostiles . | . . . . . . . . . . . . . . . . . . . . . . . . . . . . . . . . . . . Follow-up Attacks . | . . . . . . . . . . . . . . . . . . . . . . . . . . . . . . . . . . . Damage Inflicted 225631 | . 288 64 1047 549 . 334 673 2002 285 922 1325 765 3115 1798 301 . 2631 3203 1906 2264 2266 770 . 1702 4203 5720 1195 11470 5868 14419 10488 17296 12502 114260 Guns 18377 | . 217 52 973 549 . 154 501 1566 285 780 . . 276 27 . . . . 90 66 418 210 . 335 195 507 . . . 3583 3852 . 1268 2473 Cannons 96369 | . . . . . . . . . . 142 887 765 2610 1771 301 . 2631 3192 1789 2193 1848 560 . 1367 4008 5213 1195 11470 5052 10619 3400 17237 11226 6893 Explosions 106514 | . 71 . 74 . . 180 172 436 . . 438 . 229 . . . . . 27 . . . . . . . . . . 59 . . . 104828 Melee 4276 | . . . . . . . . . . . . . . . . . . . . . . . . . . . . . 816 158 3236 . . 66 Ramming 95 | . . 12 . . . . . . . . . . . . . . . 11 . 5 . . . . . . . . . . . 59 8 . Kinetic 57851 | . 57 . 173 245 . 91 461 1566 285 922 887 765 2886 1798 301 . 2631 3192 1879 2259 2266 770 . 1702 4203 4598 817 5467 1737 2657 4329 4784 3914 209 Thermal 161285 | . 144 . 100 196 . 63 40 . . . 438 . . . . . . . . . . . . . . 1122 378 6003 3315 11545 2923 12453 8580 113985 Explosive 1103 | . . . . . . 180 172 436 . . . . 229 . . . . . 27 . . . . . . . . . . 59 . . . . Electromagnetic 1021 | . 87 52 774 108 . . . . . . . . . . . . . . . . . . . . . . . . . . . . . . Impact . | . . . . . . . . . . . . . . . . . . . . . . . . . . . . . . . . . . . Slashing 4276 | . . . . . . . . . . . . . . . . . . . . . . . . . . . . . 816 158 3236 . . 66 Piercing . | . . . . . . . . . . . . . . . . . . . . . . . . . . . . . . . . . . . Highest Corruption 12 | . . . . . . . . 1 1 2 . 3 2 2 2 2 2 . . 2 . . . . . . 7 8 8 12 2 . . . Average Corruption 3 | . . . . . . . . 1 1 1 . 3 1 2 2 2 2 . . 1 . . . . . . 6 4 4 6 1 . . . Corruption Purged 33 | . . . . . . . . . . . . . . . . . . . . 2 . . . . . . . 10 . 14 7 . . . Corruption Blocked 34 | . . . . . . . . . . . . . . . . . . . . . . . . . . . . 2 12 . . 3 7 10 Effects 190 | . . . . . . . . 5 4 10 . 14 7 7 10 . 14 . . 3 . . . . . . 9 25 42 36 4 . . . Message Errors 48 | . . . . . . . . 2 2 3 . 3 2 . 3 . 3 . . . . . . . . . 5 9 9 7 . . . . Matter Fused 40 | . . . . . . . . 1 . 4 . 2 4 2 2 . 3 . . 1 . . . . . . . 3 9 9 . . . . Heat Flow Errors 20 | . . . . . . . . . 1 . . 3 . . 3 . . . . . . . . . . . 1 2 5 5 . . . . Energy Discharges 18 | . . . . . . . . . . . . 1 1 2 . . 1 . . . . . . . . . 1 2 4 6 . . . . Parts Rejected 3 | . . . . . . . . . . . . . . . . . 1 . . . . . . . . . 1 . 1 . . . . . Parts Fused 5 | . . . . . . . . . . . . . . 1 1 . . . . . . . . . . . . . 2 1 . . . . Data Loss (minor) 23 | . . . . . . . . 2 . 1 . 3 . . . . 2 . . . . . . . . . 1 5 4 4 1 . . . Data Loss (major) 11 | . . . . . . . . . . . . 1 . 1 . . 4 . . 1 . . . . . . . 2 1 . 1 . . . Misfires 10 | . . . . . . . . . 1 1 . 1 . . . . . . . 1 . . . . . . . 1 4 . 1 . . . Alerts 7 | . . . . . . . . . . 1 . . . 1 1 . . . . . . . . . . . . 1 1 1 1 . . . Weapon Failures 5 | . . . . . . . . . . . . . . . . . . . . . . . . . . . . . 2 3 . . . . Overload Shots 1 | . . . . . . . . . . . . . . . . . . . . . . . . . . . . . . . . 1 . . Overflow Damage 19205 | . . . 71 . . . . 10 . . 147 17 264 341 . . 81 476 64 193 207 99 . 143 469 679 16 986 350 1439 624 1524 966 10039 Projectiles 8675 | . . . . . . . . . . . 89 17 264 341 . . 81 476 64 193 207 99 . 143 469 679 16 986 259 1436 160 1524 966 206 Explosions 9972 | . . . 71 . . . . 10 . . 58 . . . . . . . . . . . . . . . . . . . . . . 9833 Melee 558 | . . . . . . . . . . . . . . . . . . . . . . . . . . . . . 91 3 464 . . . Knockbacks 232 | . . . . . . . . . . . 4 3 11 5 . . 11 8 4 4 5 . . 5 18 29 9 35 18 8 2 29 24 . Impact 3 | . . . . . . . . . . . . . . . . . . 1 . 1 . . . . . . . . . . . 1 . . Kinetic 206 | . . . . . . . . . . . 4 3 9 5 . . 9 7 4 3 5 . . 5 18 24 9 31 17 8 2 23 20 . Secondary 23 | . . . . . . . . . . . . . 2 . . . 2 . . . . . . . . 5 . 4 1 . . 5 4 . Self-Inflicted Damage 225 | . 13 . 142 . . . 13 27 . . . . . . . . . 5 23 2 . . . . . . . . . . . . . . Shots 8 | . 1 . 4 . . . 1 1 . . . . . . . . . . 1 . . . . . . . . . . . . . . . Rammed 8 | . . . . . . . . . . . . . . . . . . 1 . 1 . . . . . . . . . . . 4 2 . Targets Rammed 10 | . . 2 . . . . . . . . . . . . . . . 1 . 1 . . . . . . . . . . . 4 2 . Kicked 2 | . . 2 . . . . . . . . . . . . . . . . . . . . . . . . . . . . . . . . Crushed . | . . . . . . . . . . . . . . . . . . . . . . . . . . . . . . . . . . . Highest Temperature 407 | . 163 28 90 201 . 117 4 3 125 57 315 236 317 255 172 . 200 90 . 286 169 87 . . . 407 153 230 338 251 365 161 158 158 Average Temperature 83 | . 56 11 29 41 . 52 4 3 75 22 110 121 103 86 52 . 118 34 . 78 60 33 . . . 108 68 66 97 97 136 101 74 115 Received Heat Transfer 2780 | . 63 60 135 72 . 45 45 158 20 59 18 78 147 66 30 . 257 59 126 54 124 12 . 42 54 20 . 205 12 423 54 45 81 216 Effects 8 | . . . . . . . . . . . . . 1 . . . . . . . . . . . . 1 . . 4 1 1 . . . Shutdowns 2 | . . . . . . . . . . . . . . . . . . . . . . . . . . 1 . . 1 . . . . . Energy Bleed 2 | . . . . . . . . . . . . . 1 . . . . . . . . . . . . . . . . 1 . . . . Interference 3 | . . . . . . . . . . . . . . . . . . . . . . . . . . . . . 3 . . . . . Short Circuit 1 | . . . . . . . . . . . . . . . . . . . . . . . . . . . . . . . 1 . . . Siege Activations 60 | . . . . . . . . . . . . . . . . . . . . . . . . . 3 3 1 7 4 10 5 11 8 8 Total Turns 1153 | . . . . . . . . . . . . . . . . . . . . . . . . . 93 57 41 109 93 265 40 201 119 135 Longest Duration 62 | . . . . . . . . . . . . . . . . . . . . . . . . . 62 39 41 22 40 49 15 41 41 33 Robots Corrupted . | . . . . . . . . . . . . . . . . . . . . . . . . . . . . . . . . . . . Combat Hostiles . | . . . . . . . . . . . . . . . . . . . . . . . . . . . . . . . . . . . Parts Fried 4 | . . . 3 1 . . . . . . . . . . . . . . . . . . . . . . . . . . . . . . Impact Corruptions 10 | . . . . . . . . . . . . . . . . . . . . . . . . . . 3 . 2 . . . 1 4 . Robots Melted 27 | . . . . . . . . . . . . . . . . . . . . . . . . . . 1 . 6 . 1 . 6 5 8 Combat Hostiles 26 | . . . . . . . . . . . . . . . . . . . . . . . . . . 1 . 5 . 1 . 6 5 8 Parts Melted 102 | . 1 . . 1 . . . . . . . . . . . . . . . . . . . . . 3 . 22 1 14 1 6 15 38 Heat Transferred 39415 | . 346 . 174 629 . 185 185 . . . 300 . . . . . . . . . . . . . . 735 369 4625 2590 5862 137 7738 6170 9370 Parts Sabotaged 1 | . . . . . . . . . . . . . . . . . . . . . . . . . . 1 . . . . . . . . Parts Stolen . | . . . . . . . . . . . . . . . . . . . . . . . . . . . . . . . . . . . Parts Stripped . | . . . . . . . . . . . . . . . . . . . . . . . . . . . . . . . . . . . Power Chain Reactions 3 | . 1 . 2 . . . . . . . . . . . . . . . . . . . . . . . . . . . . . . . Alert | -11 -10 -10 -9 -9 -9 -8 -8 -8 -8 -8 -7 -7 -6 -6 -6 -6 -5 -5 -5 -5 -5 -5 -5 -4 -4 -4 -4 -3 -3 -2 -2 -2 -1 -1 ------- Run | Yrd Mat Min Mat Min Exi Min Mat Gar Mat Gar Fac Gar Fac Low Low Dat Pro Fac Gar Fac Upp Upp Zhi Pro Fac Arm Lab Res Qua Res Tes Sec Acc Com Peak Influence 1195 | . 200 113 399 208 . 129 362 1034 369 654 760 1084 646 . . . . 370 879 458 . . . . 423 283 . 468 246 737 685 920 1195 800 Initial 516 | . . 55 30 8 . . 35 52 369 166 255 324 422 . . . . 28 36 342 . . . . 150 60 . . 57 29 155 55 300 516 Average 326 | . 101 64 151 63 . 69 190 591 251 455 498 731 393 . . . . 149 507 190 . . . . 122 117 . 173 74 283 271 570 734 611 Maximum Alert Level 5 | . 1 . 2 1 . . 1 3 1 2 3 3 2 . . . . 1 3 2 . . . . 2 1 . 2 1 3 2 3 4 5 Low Security (%) 42 | 100 80 100 71 99 . 100 50 10 . 6 . . 3 . . . . 69 28 61 . . . . 89 78 . 65 90 36 43 7 . . Level 1 21 | . 19 . 27 . . . 49 23 100 22 5 4 45 . . . . 30 5 36 . . . . 9 21 . 19 9 28 25 20 12 . Level 2 24 | . . . . . . . . 22 . 71 84 40 51 . . . . . 28 1 . . . . . . . 15 . 33 30 34 36 73 Level 3 10 | . . . . . . . . 43 . . 9 55 . . . . . . 37 . . . . . . . . . . . . 36 46 7 Level 4 . | . . . . . . . . . . . . . . . . . . . . . . . . . . . . . . . . . 5 . Level 5 . | . . . . . . . . . . . . . . . . . . . . . . . . . . . . . . . . . . 18 High Security . | . . . . . . . . . . . . . . . . . . . . . . . . . . . . . . . . . . . Max Security . | . . . . . . . . . . . . . . . . . . . . . . . . . . . . . . . . . . . Squads Dispatched 151 | . 1 . 4 . . . 1 . 1 . 4 . 11 . . . . 6 . 4 . . . 1 3 6 . 20 8 20 17 23 13 8 Investigation 18 | . 1 . 1 . . . 1 . . . 2 . 1 . . . . 4 . 2 . . . 1 . 1 . 2 . 2 . . . . Extermination 32 | . . . . . . . . . . . . . 1 . . . . 2 . 1 . . . . 2 3 . 4 2 5 4 4 3 1 Reinforcement 33 | . . . 3 . . . . . . . 1 . 4 . . . . . . 1 . . . . 1 2 . 3 . 3 5 5 3 2 Assault 19 | . . . . . . . . . . . 1 . 1 . . . . . . . . . . . . . . 1 1 1 1 7 1 5 Garrison 6 | . . . . . . . . . 1 . . . 4 . . . . . . . . . . . . . . . . . 1 . . . Intercept 43 | . . . . . . . . . . . . . . . . . . . . . . . . . . . . 10 5 9 6 7 6 . Searches Triggered . | . . . . . . . . . . . . . . . . . . . . . . . . . . . . . . . . . . . Data Miner Redirects 4 | . . . . . . . . . . . . . . . . . . . . . . . . . . . . . . . 1 3 . . Construction Impeded 4 | . . . . . . . . . . . . . 1 . . . . . . . . . . . . . . 1 . 1 . 1 . . Haulers Reinforced 4 | . . . . . . . . . . . 1 . . . . . . . . . . . . . 1 . . 1 . . . 1 . . Active Scanning Responses . | . . . . . . . . . . . . . . . . . . . . . . . . . . . . . . . . . . . Cargo Convoy Interrupts 1 | . . . . . . . . . . . . . 1 . . . . . . . . . . . . . . . . . . . . . Stealth | -11 -10 -10 -9 -9 -9 -8 -8 -8 -8 -8 -7 -7 -6 -6 -6 -6 -5 -5 -5 -5 -5 -5 -5 -4 -4 -4 -4 -3 -3 -2 -2 -2 -1 -1 --------- Run | Yrd Mat Min Mat Min Exi Min Mat Gar Mat Gar Fac Gar Fac Low Low Dat Pro Fac Gar Fac Upp Upp Zhi Pro Fac Arm Lab Res Qua Res Tes Sec Acc Com Distress Signals 63 | . 1 . 4 . . . . . 1 . 2 . 2 . . . 15 1 . . . . . 1 2 5 . 5 2 1 5 4 4 8 Communications Jammed 76 | . . . . . . . . . . . 2 . 10 . . . . . . . . . . . 26 38 . . . . . . . . Distress Signals 73 | . . . . . . . . . . . . . 9 . . . . . . . . . . . 26 38 . . . . . . . . Times Spotted 979 | . 7 8 17 9 . 5 10 28 8 18 19 21 43 14 6 . 9 38 25 22 13 6 . 11 31 46 1 68 31 58 65 106 56 180 Peak Tracking Total 44 | . 2 6 3 2 . 3 3 6 6 5 3 4 6 4 2 . 3 6 4 2 2 2 . 3 4 7 1 8 6 7 5 11 7 44 Tactical Retreats 25 | . . 2 1 . . . 2 . . . 1 . . 1 . . . 1 . . . . . . . 1 . 2 1 2 2 3 4 2 Traps | -11 -10 -10 -9 -9 -9 -8 -8 -8 -8 -8 -7 -7 -6 -6 -6 -6 -5 -5 -5 -5 -5 -5 -5 -4 -4 -4 -4 -3 -3 -2 -2 -2 -1 -1 ------- Run | Yrd Mat Min Mat Min Exi Min Mat Gar Mat Gar Fac Gar Fac Low Low Dat Pro Fac Gar Fac Upp Upp Zhi Pro Fac Arm Lab Res Qua Res Tes Sec Acc Com Traps Triggered 47 | . . . 2 . . . . 9 . 2 . 8 . . . . 1 . 14 1 . . . . . 1 . 1 1 3 . 2 1 1 Indirectly . | . . . . . . . . . . . . . . . . . . . . . . . . . . . . . . . . . . . Trap Hack Attempts . | . . . . . . . . . . . . . . . . . . . . . . . . . . . . . . . . . . . Triggered . | . . . . . . . . . . . . . . . . . . . . . . . . . . . . . . . . . . . Disarmed . | . . . . . . . . . . . . . . . . . . . . . . . . . . . . . . . . . . . Reprogrammed 6 | . . . . . . . . . . . . . . . . . . . . . . . . . . 6 . . . . . . . . Reused 1 | . . . . . . . 1 . . . . . . . . . . . . . . . . . . . . . . . . . . . Traps Extracted . | . . . . . . . . . . . . . . . . . . . . . . . . . . . . . . . . . . . Installed 1 | . . . . . . . 1 . . . . . . . . . . . . . . . . . . . . . . . . . . . Triggered 4 | . . . . . . . 1 . . . . . 1 . . . . . . . 1 1 . . . . . . . . . . . . Most Traps Carried 1 | . . . . 1 1 1 1 . . . . . . . . . . . . . . . . . . . . . . . . . . . Machines | -11 -10 -10 -9 -9 -9 -8 -8 -8 -8 -8 -7 -7 -6 -6 -6 -6 -5 -5 -5 -5 -5 -5 -5 -4 -4 -4 -4 -3 -3 -2 -2 -2 -1 -1 ---------- Run | Yrd Mat Min Mat Min Exi Min Mat Gar Mat Gar Fac Gar Fac Low Low Dat Pro Fac Gar Fac Upp Upp Zhi Pro Fac Arm Lab Res Qua Res Tes Sec Acc Com Machines Disabled 153 | . 3 . 4 . . . 2 5 . 4 18 6 3 1 . . 1 7 7 11 3 1 . 1 7 4 2 2 15 5 14 25 2 . Max in Single Turn 14 | . 1 . 2 . . . 1 1 . 1 14 1 2 . . . 1 1 2 1 1 1 . 1 1 1 1 1 2 1 1 2 1 . Garrison Access 6 | . . . . . . . . . . . 1 . . . . . . . . . . . . . 1 . . . 1 2 1 . . . Garrison Relay 18 | . . . . . . . . 5 . 4 . 5 . . . . . . 4 . . . . . . . . . . . . . . . Phase Generator 2 | . . . . . . . . . . . . . . . . . . . 1 . . . . . . . . . . . . . . 1 Machines Repaired . | . . . . . . . . . . . . . . . . . . . . . . . . . . . . . . . . . . . Machines Dismantled . | . . . . . . . . . . . . . . . . . . . . . . . . . . . . . . . . . . . Machines Sabotaged . | . . . . . . . . . . . . . . . . . . . . . . . . . . . . . . . . . . . Overloaded Fab Kills . | . . . . . . . . . . . . . . . . . . . . . . . . . . . . . . . . . . . Hacking | -11 -10 -10 -9 -9 -9 -8 -8 -8 -8 -8 -7 -7 -6 -6 -6 -6 -5 -5 -5 -5 -5 -5 -5 -4 -4 -4 -4 -3 -3 -2 -2 -2 -1 -1 --------- Run | Yrd Mat Min Mat Min Exi Min Mat Gar Mat Gar Fac Gar Fac Low Low Dat Pro Fac Gar Fac Upp Upp Zhi Pro Fac Arm Lab Res Qua Res Tes Sec Acc Com Machines Accessed 154 | . 6 1 5 1 4 . 5 2 3 4 6 2 7 2 1 4 . 12 1 10 . . 9 1 12 10 2 9 . 11 10 8 2 4 Terminals 82 | . 5 1 3 1 . . 3 2 1 4 2 2 4 . . . . 5 1 5 . . . 1 8 8 . 5 . 5 5 6 1 4 Fabricators 12 | . . . . . . . . . . . 1 . . . . . . 1 . 1 . . . . 1 2 . 2 . 2 1 . 1 . Repair Stations 17 | . . . . . . . 1 . . . 1 . 2 . . . . 4 . 4 . . . . 2 . . 1 . . 2 . . . Recycling Units 2 | . 1 . 1 . . . . . . . . . . . . . . . . . . . . . . . . . . . . . . . Scanalyzers 9 | . . . 1 . . . . . 1 . 1 . . . . . . 1 . . . . . . . . . 1 . 2 1 1 . . Garrison Access 10 | . . . . . . . 1 . 1 . 1 . 1 . . . . 1 . . . . . . 1 . . . . 2 1 1 . . Total Hacks 545 | . 20 5 12 1 28 . 14 3 6 6 11 4 21 2 1 32 . 63 5 32 . . 48 4 36 28 19 24 . 39 30 24 8 19 Successful 410 | . 11 3 7 . 28 . 8 2 5 3 6 1 12 2 1 32 . 50 1 21 . . 48 4 27 19 19 16 . 26 22 22 5 9 Failed 135 | . 9 2 5 1 . . 6 1 1 3 5 3 9 . . . . 13 4 11 . . . . 9 9 . 8 . 13 8 2 3 10 Catastrophic 14 | . 1 . 1 . . . 1 1 . . 1 . 2 . . . . . 1 2 . . . . . . . . . . 1 . . 3 Database Lockouts . | . . . . . . . . . . . . . . . . . . . . . . . . . . . . . . . . . . . Manual 196 | . 19 3 4 1 1 . 9 1 1 . . . 2 . . . . 37 4 10 . . . . 21 11 1 10 . 25 10 10 2 14 Terminals 270 | . 19 5 9 1 . . 11 3 2 6 3 4 9 . . . . 34 5 11 . . . 4 25 18 . 16 . 26 14 21 5 19 Fabricators 40 | . . . . . . . . . . . 1 . . . . . . 7 . 4 . . . . 4 10 . 3 . 6 2 . 3 . Repair Stations 66 | . . . . . . . 2 . . . 3 . 10 . . . . 17 . 17 . . . . 6 . . 3 . . 8 . . . Recycling Units 2 | . 1 . 1 . . . . . . . . . . . . . . . . . . . . . . . . . . . . . . . Scanalyzers 24 | . . . 2 . . . . . 2 . 3 . . . . . . 3 . . . . . . . . . 2 . 5 5 2 . . Garrison Access 13 | . . . . . . . 1 . 2 . 1 . 2 . . . . 2 . . . . . . 1 . . . . 2 1 1 . . Terminal Hacks 246 | . 10 2 3 . 28 . 3 2 2 3 1 1 2 2 1 32 . 22 1 3 . . 48 4 10 5 19 8 . 11 3 13 1 6 Record 98 | . . . . . 28 . . . . . . . . . . 11 . . . . . . 36 4 . . 19 . . . . . . . Part Schematic 17 | . . . . . . . . . . . . . . . . 10 . 1 . . . . 4 . 1 1 . . . . . . . . Robot Schematic 9 | . . . . . . . . . . . . . . . . 8 . . . . . . . . . . . . . . . 1 . . Robot Analysis 40 | . 8 . 1 . . . . . 1 . . . . . . . . 16 . . . . 4 . 4 . . . . 4 . 1 . 1 Prototype ID Bank 9 | . . . . . . . . . . . . . . . . 3 . 1 . . . . 4 . . . . . . . 1 . . . Open Door 5 | . . . . . . . . 1 . 1 . . . 2 1 . . . . . . . . . . . . . . . . . . . Open DSF 4 | . . . . . . . . . . . 1 . . . . . . 1 . 1 . . . . . . . 1 . . . . . . Level Access Points 2 | . . . . . . . . . . . . . 1 . . . . . . . . . . . . . . 1 . . . . . . Branch Access Points 8 | . . 1 . . . . 1 . . . . . 1 . . . . 1 . 1 . . . . . . . 1 . 1 . . 1 . Emergency Access Points 3 | . . . . . . . . 1 . . . 1 . . . . . . 1 . . . . . . . . . . . . . . . Machine Index 4 | . . . . . . . . . . . . . . . . . . . . . . . . . 1 . . . . . 1 1 . 1 Terminal Index 5 | . . . . . . . 1 . . . . . . . . . . . . . . . . . 1 . . . . 1 . 1 . 1 Fabricator Index 2 | . . . . . . . . . . . . . . . . . . . . . . . . . . . . . . 1 . 1 . . Repair Station Index 3 | . . . . . . . . . . . . . . . . . . 1 . . . . . . . . . . . . . 1 . 1 Scanalyzer Index 2 | . . . . . . . . . . . . . . . . . . . . . . . . . . . . . . 1 . 1 . . Garrison Index 4 | . . . . . . . 1 . . . . . . . . . . 1 . . . . . . . . . 1 . . . 1 . . Alert Level 3 | . 2 . 1 . . . . . . . . . . . . . . . . . . . . . . . . . . . . . . . Unreport Threat 5 | . . . . . . . . . 1 . . . . . . . . . . 1 . . . . . . . 2 . . . . . 1 Locate Traps 2 | . . . . . . . . . . . . . . . . . . . . . . . . . 1 . . . . . . 1 . . Reprogram Traps 1 | . . . . . . . . . . . . . . . . . . . . . . . . . . 1 . . . . . . . . Security Status 1 | . . . . . . . . . . . . . . . . . . . . . . . . . 1 . . . . . . . . . Recall Investigation 1 | . . . . . . . . . . . . . . . . . . . . . . . . . . . . 1 . . . . . . Recall Extermination 4 | . . . . . . . . . . . . . . . . . . . . . . . . . 1 2 . . . 1 . . . . Recall Reinforcements 3 | . . . . . . . . . . . . . . . . . . . . . . . . . . . . 1 . 1 . 1 . . Registered Components 1 | . . . . . . . . . . . . . . . . . . . . . . . . . . . . . . . . 1 . . Registered Prototypes 1 | . . . . . . . . . . . . . . . . . . . . . . . . . . . . . . . . 1 . . Zone Layout 6 | . . 1 1 . . . . . . . . . . . . . . . . . . . . . . 1 . . . 1 1 1 . . Garrison Registry 1 | . . . . . . . . . . 1 . . . . . . . . . . . . . . . . . . . . . . . . Security Stations 1 | . . . . . . . . . . 1 . . . . . . . . . . . . . . . . . . . . . . . . Disengage Seal 1 | . . . . . . . . . . . . . . . . . . . . . . . . . . . . . . . . . . 1 Fabricator Hacks 31 | . . . . . . . . . . . 1 . . . . . . 5 . 3 . . . . 1 8 . 3 . 5 2 . 3 . Network Status 6 | . . . . . . . . . . . 1 . . . . . . 1 . 1 . . . . . 1 . 1 . . . . 1 . Load Schematic 13 | . . . . . . . . . . . . . . . . . . 2 . 1 . . . . . 4 . 1 . 3 1 . 1 . Build 12 | . . . . . . . . . . . . . . . . . . 2 . 1 . . . . 1 3 . 1 . 2 1 . 1 . Repair Station Hacks 53 | . . . . . . . 2 . . . 1 . 8 . . . . 16 . 13 . . . . 6 . . 2 . . 5 . . . Scan Component 28 | . . . . . . . 1 . . . 1 . 4 . . . . 8 . 7 . . . . 3 . . 1 . . 3 . . . Repair 25 | . . . . . . . 1 . . . . . 4 . . . . 8 . 6 . . . . 3 . . 1 . . 2 . . . Recycling Unit Hacks . | . . . . . . . . . . . . . . . . . . . . . . . . . . . . . . . . . . . Scanalyzer 19 | . . . 2 . . . . . 1 . 2 . . . . . . 2 . . . . . . . . . 1 . 4 5 2 . . Insert Component 12 | . . . 1 . . . . . 1 . 1 . . . . . . 1 . . . . . . . . . 1 . 3 2 2 . . Analyze 7 | . . . 1 . . . . . . . 1 . . . . . . 1 . . . . . . . . . . . 1 3 . . . Garrison Access Hacks 11 | . . . . . . . 1 . 2 . 1 . 1 . . . . 1 . . . . . . 1 . . . . 2 1 1 . . Unlock Access 5 | . . . . . . . 1 . 1 . 1 . . . . . . 1 . . . . . . . . . . . . . 1 . . Seal Access 4 | . . . . . . . . . . . . . . . . . . . . . . . . . 1 . . . . 2 1 . . . Coupler Status 2 | . . . . . . . . . 1 . . . 1 . . . . . . . . . . . . . . . . . . . . . Unauthorized Hacks 50 | . 1 1 2 . . . 2 . . . . . 1 . . . . 4 . 2 . . . . 9 6 . 2 . 4 6 6 1 3 Terminals 41 | . . 1 1 . . . 2 . . . . . . . . . . 2 . 2 . . . . 7 4 . 2 . 4 6 6 1 3 Assimilate 1 | . . . . . . . . . . . . . . . . . . . . . . . . . . . . . . . 1 . . . Botnet 37 | . . 1 . . . . 2 . . . . . . . . . . 2 . 2 . . . . 5 4 . 2 . 4 5 6 1 3 Disrupt 2 | . . . 1 . . . . . . . . . . . . . . . . . . . . . 1 . . . . . . . . . Operators 1 | . . . . . . . . . . . . . . . . . . . . . . . . . 1 . . . . . . . . . Fabricators 5 | . . . . . . . . . . . . . . . . . . 1 . . . . . . 2 2 . . . . . . . . Prioritize 3 | . . . . . . . . . . . . . . . . . . 1 . . . . . . 1 1 . . . . . . . . Fabnet 2 | . . . . . . . . . . . . . . . . . . . . . . . . . 1 1 . . . . . . . . Repair Stations . | . . . . . . . . . . . . . . . . . . . . . . . . . . . . . . . . . . . Recycling Units 2 | . 1 . 1 . . . . . . . . . . . . . . . . . . . . . . . . . . . . . . . Tunnel 2 | . 1 . 1 . . . . . . . . . . . . . . . . . . . . . . . . . . . . . . . Scanalyzers . | . . . . . . . . . . . . . . . . . . . . . . . . . . . . . . . . . . . Garrison Access 2 | . . . . . . . . . . . . . 1 . . . . 1 . . . . . . . . . . . . . . . . Eject 2 | . . . . . . . . . . . . . 1 . . . . 1 . . . . . . . . . . . . . . . . Data Cores Recovered 3 | . . . . . . . . . . . . . . . . . . . . 1 . . . . . 1 . . . . . 1 . . Used 2 | . . . . . . . . . . . . . . . . . . . . 1 . . . . . . . . . . . 1 . . Hacking Detections 105 | . 5 1 3 1 . . 4 2 2 2 2 1 5 . . . . 11 1 8 . . . 1 10 10 . 8 . 9 9 5 2 3 Full Trace Events 16 | . 1 . 1 . . . 1 . . . 2 . . . . . . 3 . 2 . . . 1 . 1 . 2 . 2 . . . . Feedback Events 4 | . . . . . . . . . . . . . . . . . . . . . . . . . . . . 2 . 2 . . . . Corruption 2 | . . . . . . . . . . . . . . . . . . . . . . . . . . . . 2 . . . . . . Hackware Fried 2 | . . . . . . . . . . . . . . . . . . . . . . . . . . . . . . 2 . . . . Feedback Blocked . | . . . . . . . . . . . . . . . . . . . . . . . . . . . . . . . . . . . Robot Schematics Acquired 15 | . . . . . . . . . . . . . . . . 8 . . . . . . . . . . . . . . 4 3 . . Robots Built 5 | . . . . . . . . . . . . . . . . . . 2 . . . . . . . 2 . 1 . . . . . . Authchips 2 | . . . . . . . . . . . . . . . . . . 1 . . . . . . . 1 . . . . . . . . Time 373 | . . . . . . . . . . . . . . . . . . 93 . . . . . . . 93 . 187 . . . . . . Total Robot Build Rating 35 | . . . . . . . . . . . . . . . . . . 14 . . . . . . . 14 . 7 . . . . . . Part Schematics Acquired 40 | . . . 1 . . . . . . . 1 . . . . 10 . 2 . . . . 4 . 1 1 . . . 1 12 7 . . Parts Built 11 | . . . . . . . . . . . . . . . . . . 1 . 2 . . . . 1 2 . . . 3 1 . 1 . Authchips . | . . . . . . . . . . . . . . . . . . . . . . . . . . . . . . . . . . . Time 729 | . . . . . . . . . . . . . . . . . . 76 . 58 . . . . 139 238 . . . 104 46 . 68 . Total Part Build Rating 81 | . . . . . . . . . . . . . . . . . . 5 . 14 . . . . 9 15 . . . 21 9 . 8 . Parts Repaired 24 | . . . . . . . 1 . . . . . 3 . . . . 8 . 6 . . . . 3 . . 1 . . 2 . . . Time 939 | . . . . . . . 26 . . . . . 175 . . . . 285 . 268 . . . . 119 . . 24 . . 42 . . . Parts Recycled . | . . . . . . . . . . . . . . . . . . . . . . . . . . . . . . . . . . . Recycled Matter . | . . . . . . . . . . . . . . . . . . . . . . . . . . . . . . . . . . . Retrieved Matter . | . . . . . . . . . . . . . . . . . . . . . . . . . . . . . . . . . . . Retrieved Components . | . . . . . . . . . . . . . . . . . . . . . . . . . . . . . . . . . . . Parts Scanalyzed 6 | . . . 1 . . . . . 1 . . . . . . . . 1 . . . . . . . . . . . 1 2 . . . Part Schematics Acquired 6 | . . . 1 . . . . . . . 1 . . . . . . 1 . . . . . . . . . . . 1 2 . . . Parts Damaged . | . . . . . . . . . . . . . . . . . . . . . . . . . . . . . . . . . . . Bothacking | -11 -10 -10 -9 -9 -9 -8 -8 -8 -8 -8 -7 -7 -6 -6 -6 -6 -5 -5 -5 -5 -5 -5 -5 -4 -4 -4 -4 -3 -3 -2 -2 -2 -1 -1 ------------ Run | Yrd Mat Min Mat Min Exi Min Mat Gar Mat Gar Fac Gar Fac Low Low Dat Pro Fac Gar Fac Upp Upp Zhi Pro Fac Arm Lab Res Qua Res Tes Sec Acc Com Used RIF Installer 6 | . . . . . . . . 2 . 2 . 1 . . . . . . 1 . . . . . . . . . . . . . . . Signal Jammer 1 | . . . . . . . . . . 1 . . . . . . . . . . . . . . . . . . . . . . . . Zone Cloak 1 | . . . . . . . . . . . . . . . . . . . 1 . . . . . . . . . . . . . . . Patrol Navigation 1 | . . . . . . . . . . 1 . . . . . . . . . . . . . . . . . . . . . . . . Program Shield 1 | . . . . . . . . 1 . . . . . . . . . . . . . . . . . . . . . . . . . . Autoassimilate 1 | . . . . . . . . . . . . 1 . . . . . . . . . . . . . . . . . . . . . . Robots Hacked 132 | . . . . . . . . . 3 5 6 7 19 1 5 1 1 10 8 4 2 . . 2 8 5 1 10 3 5 5 6 1 14 Non-combat 12 | . . . . . . . . . . . 1 . 6 . . . . 1 . 1 . . . . 3 . . . . . . . . . Combat 120 | . . . . . . . . . 3 5 5 7 13 1 5 1 1 9 8 3 2 . . 2 5 5 1 10 3 5 5 6 1 14 Autoassimilated 41 | . . . . . . . . . . . . . 7 . . . . 4 1 1 2 . . . 3 3 . 6 . 4 . 3 1 6 Robot Hacks Applied 90 | . . . . . . . . . 3 5 6 7 13 1 5 1 1 8 7 4 . . . 2 5 2 1 3 . . 7 1 . 8 parse_system 9 | . . . . . . . . . . . . . . . 1 1 . 1 1 . . . . . . . 1 . . . 3 1 . . no_distress 3 | . . . . . . . . . . . . . 1 . . . . . . . . . . . 2 . . . . . . . . . drop_inventory 2 | . . . . . . . . . . . . . 2 . . . . . . . . . . . . . . . . . . . . . ignore_parts 1 | . . . . . . . . . . . . . 1 . . . . . . . . . . . . . . . . . . . . . find_station 1 | . . . . . . . . . . . . . . . . . . . . 1 . . . . . . . . . . . . . . purge_threat 1 | . . . . . . . . . . . . . 1 . . . . . . . . . . . . . . . . . . . . . reprogram_traps 1 | . . . . . . . . . . . . . 1 . . . . . . . . . . . . . . . . . . . . . map_route 1 | . . . . . . . . . . . 1 . . . . . . . . . . . . . . . . . . . . . . . redirect_shields 1 | . . . . . . . . . . . . . 1 . . . . . . . . . . . . . . . . . . . . . find_scanalyzer 1 | . . . . . . . . . . . . . . . . . . . . . . . . . . . . . . . 1 . . . find_shortcuts 1 | . . . . . . . . . . . . 1 . . . . . . . . . . . . . . . . . . . . . . find_garrison 2 | . . . . . . . . . . . 1 . . . . . . 1 . . . . . . . . . . . . . . . . overload_power 3 | . . . . . . . . . . . 1 . . . 1 . . 1 . . . . . . . . . . . . . . . . amplify_resonance 27 | . . . . . . . . . . 1 . 4 2 . . . . 3 . 1 . . . 2 1 2 . 2 . . 1 . . 8 disable_weapons 1 | . . . . . . . . . . . . . . . . . . 1 . . . . . . . . . . . . . . . . reboot_system 2 | . . . . . . . . . . . . . . . 1 . . . . . . . . . 1 . . . . . . . . . overwrite_iff 13 | . . . . . . . . . 1 1 1 1 2 1 . . . 1 3 1 . . . . . . . . . . 1 . . . formatsys_low 1 | . . . . . . . . . . . . . . . . . . . . 1 . . . . . . . . . . . . . . formatsys_high 17 | . . . . . . . . . 2 3 2 1 . . 2 . 1 . 3 . . . . . 1 . . 1 . . 1 . . . formatsys_deep 2 | . . . . . . . . . . . . . 2 . . . . . . . . . . . . . . . . . . . . . Relay Couplers Released 83 | . . . . . . . . 21 . 17 3 20 4 . . . . 3 15 . . . . . . . . . . . . . . . Ejected 7 | . . . . . . . . . . . . . 4 . . . . 3 . . . . . . . . . . . . . . . . Machine Destruction 73 | . . . . . . . . 18 . 17 3 20 . . . . . . 15 . . . . . . . . . . . . . . . Programmers 3 | . . . . . . . . 3 . . . . . . . . . . . . . . . . . . . . . . . . . . Attached 30 | . . . . . . . . . 2 2 2 7 2 . . . . 3 5 2 . . . . . 1 . . 1 . 1 . 1 1 Fabnet Peak Effective % 6 | . . . . . . . . . . . . . . . . . . . . . . . . . . . . 6 6 2 2 2 . . Autooverrided 7 | . . . . . . . . . . . . . . . . . . . . . . . . . . . . 1 3 1 . 2 . . Robots Rewired 20 | . . . . . . . . 3 . 3 . 4 . 2 . . . . 3 . . . . . . 4 . . . . 1 . . . Allies Hacked . | . . . . . . . . . . . . . . . . . . . . . . . . . . . . . . . . . . . Hacks Repelled . | . . . . . . . . . . . . . . . . . . . . . . . . . . . . . . . . . . . Allies | -11 -10 -10 -9 -9 -9 -8 -8 -8 -8 -8 -7 -7 -6 -6 -6 -6 -5 -5 -5 -5 -5 -5 -5 -4 -4 -4 -4 -3 -3 -2 -2 -2 -1 -1 -------- Run | Yrd Mat Min Mat Min Exi Min Mat Gar Mat Gar Fac Gar Fac Low Low Dat Pro Fac Gar Fac Upp Upp Zhi Pro Fac Arm Lab Res Qua Res Tes Sec Acc Com Total Allies 117 | . . . . . . . . 5 3 7 3 8 15 3 2 . 1 7 12 3 2 . . . 4 9 . 9 3 5 4 5 1 6 Largest Group 13 | . . . . . . . . 3 3 5 5 9 13 3 3 . 1 3 5 5 1 . . . 1 5 . 3 1 1 2 2 1 2 Highest-Rated Group 508 | . . . . . . . . 62 47 114 114 343 508 109 82 . 49 154 338 355 12 . . . 56 177 . 175 67 69 401 407 58 116 Highest-Rated Ally 343 | . . . . . . . . 31 16 31 32 95 95 49 32 . 49 56 99 95 12 . . . 56 56 . 64 67 69 343 343 58 58 Total Orders 12 | . . . . . . . . . . . . . . . . . . . . 7 . . . . . . . 4 . . . 1 . . ROAM 1 | . . . . . . . . . . . . . . . . . . . . 1 . . . . . . . . . . . . . . FOLLOW 2 | . . . . . . . . . . . . . . . . . . . . . . . . . . . . 2 . . . . . . AID 8 | . . . . . . . . . . . . . . . . . . . . 6 . . . . . . . 2 . . . . . . EXPLORE 1 | . . . . . . . . . . . . . . . . . . . . . . . . . . . . . . . . 1 . . Ally Attacks 782 | . . . . . . . . 31 12 23 95 37 180 12 4 . 1 66 97 31 5 . . . 7 41 . 29 5 9 29 38 9 21 Total Damage 23829 | . . . . . . . . 305 199 371 1455 725 5025 465 102 . 26 2664 2591 1352 55 . . . 635 1104 . 1108 64 328 2124 2158 233 740 Kills 157 | . . . . . . . . 4 2 4 11 10 33 2 . . . 17 18 11 . . . . 4 7 . 5 . 2 12 12 1 2 Allies Corrupted 6 | . . . . . . . . . . . . . . 1 . . . . . 3 . . . . . . . . 1 1 . . . . Allies Melted 3 | . . . . . . . . . . . . . . . . . . 1 1 . . . . . . . . 1 . . . . . . Intel | -11 -10 -10 -9 -9 -9 -8 -8 -8 -8 -8 -7 -7 -6 -6 -6 -6 -5 -5 -5 -5 -5 -5 -5 -4 -4 -4 -4 -3 -3 -2 -2 -2 -1 -1 ------- Run | Yrd Mat Min Mat Min Exi Min Mat Gar Mat Gar Fac Gar Fac Low Low Dat Pro Fac Gar Fac Upp Upp Zhi Pro Fac Arm Lab Res Qua Res Tes Sec Acc Com Robot Analysis Total 38 | . 8 . 1 . . . . . 1 . . . . . . . . 14 . . . . 4 . 4 . . . . 4 . 1 . 1 Derelict Logs Recovered 11 | . . . . 2 . . . . . . . . . 1 2 . . . . . 3 2 . 1 . . . . . . . . . . Drone Launches 5 | . . . . . . . . . . . . . . . . . . . . . . . . . 3 . . . . . . 2 . . Drone Recoveries 1 | . . . . . . . . . . . . . . . . . . . . . . . . . . . . . . . . 1 . . Exploration | -11 -10 -10 -9 -9 -9 -8 -8 -8 -8 -8 -7 -7 -6 -6 -6 -6 -5 -5 -5 -5 -5 -5 -5 -4 -4 -4 -4 -3 -3 -2 -2 -2 -1 -1 ------------- Run | Yrd Mat Min Mat Min Exi Min Mat Gar Mat Gar Fac Gar Fac Low Low Dat Pro Fac Gar Fac Upp Upp Zhi Pro Fac Arm Lab Res Qua Res Tes Sec Acc Com Turns Passed 35516 | 73 335 236 979 770 552 226 490 1510 174 1106 755 933 1306 639 661 140 576 1744 1072 1451 496 424 275 897 1231 1459 363 2128 1686 2681 3135 2522 1394 1097 Spaces Moved 19071 | 51 244 181 607 557 458 160 293 757 94 628 391 555 762 338 408 105 315 872 607 765 296 297 190 528 525 662 188 956 863 1185 1707 1397 672 457 Core 14 | 7 . . . . . . . . . . . . . . . . . . . . . . . . . . . . . . . . . 7 Treads 8717 | . . . . . . . . 72 . 246 . 3 12 86 71 . . 45 14 20 3 . . 22 96 609 188 956 863 1185 1707 1397 672 450 Legs 2425 | 44 244 181 597 557 458 160 184 . . . . . . . . . . . . . . . . . . . . . . . . . . . Wheels 7915 | . . . 10 . . . 109 685 94 382 391 552 750 252 337 105 315 827 593 745 293 297 190 506 429 53 . . . . . . . . Hover . | . . . . . . . . . . . . . . . . . . . . . . . . . . . . . . . . . . . Flight . | . . . . . . . . . . . . . . . . . . . . . . . . . . . . . . . . . . . Fastest Speed 50 | 50 120 120 120 120 120 120 120 145 130 130 130 130 130 145 130 130 145 145 145 130 130 130 130 130 130 150 152 152 152 153 145 135 135 50 Average Speed 146 | 110 120 120 129 120 120 120 125 159 141 151 132 131 139 169 155 131 145 149 147 133 131 130 130 135 168 151 152 171 155 174 150 140 141 153 Slowest Speed 410 | 120 120 120 190 120 120 120 145 250 145 250 145 410 240 240 240 145 145 240 250 250 250 130 190 250 250 152 152 237 237 330 153 150 146 245 Overloaded Moves . | . . . . . . . . . . . . . . . . . . . . . . . . . . . . . . . . . . . Propulsion Burnouts . | . . . . . . . . . . . . . . . . . . . . . . . . . . . . . . . . . . . Robots Hopped . | . . . . . . . . . . . . . . . . . . . . . . . . . . . . . . . . . . . Cave-ins Triggered . | . . . . . . . . . . . . . . . . . . . . . . . . . . . . . . . . . . . Teleports 1 | . . . . . . . . . . . . . . . . . . . . . . . . . . 1 . . . . . . . . Exploration Rate (%) 54 | 4 49 42 48 99 90 49 32 94 16 74 19 79 26 59 61 73 46 24 86 26 51 60 62 70 12 53 96 33 90 37 95 87 20 28 Regions Visited 34 Branch Regions 18 Pre-discovered Areas 9 | . 1 . 1 . 1 . . . . . . . . . 1 1 . . . . 1 . 3 . . . . . . . . . . . Known Exits Taken 30 | 1 1 1 1 1 1 1 1 . 1 . 1 . 1 1 1 1 1 1 . 1 1 1 1 1 1 1 1 1 1 1 1 1 1 . Unknown Exits Taken . | . . . . . . . . . . . . . . . . . . . . . . . . . . . . . . . . . . . Scrap Searched 14 | . . . . . . . . . . . . . . 3 1 . 1 . . . 3 4 . 2 . . . . . . . . . . Spaces Dug 67 | . . . . . . . . 2 . . . . . . . . 1 1 1 4 . . . . 1 . . 10 5 7 19 11 5 . Terrain Destroyed 1631 | . 2 . 44 . . 10 11 31 . . 78 6 21 4 . . 4 3 81 54 11 7 . 3 11 12 . 57 26 158 78 52 34 833 Melee 11 | . . . . . . . . 2 . . . . . . . . . . . . . . . . . . . . . 5 1 . 3 . Projectile 502 | . . . . . . . . . . . 7 6 4 4 . . 4 3 3 8 11 7 . 3 11 12 . 57 26 123 77 52 31 53 AOE 1118 | . 2 . 44 . . 10 11 29 . . 71 . 17 . . . . . 78 46 . . . . . . . . . 30 . . . 780 Terrain Rammed . | . . . . . . . . . . . . . . . . . . . . . . . . . . . . . . . . . . . Walls Destroyed . | . . . . . . . . . . . . . . . . . . . . . . . . . . . . . . . . . . . Machines Disabled . | . . . . . . . . . . . . . . . . . . . . . . . . . . . . . . . . . . . Actions | -11 -10 -10 -9 -9 -9 -8 -8 -8 -8 -8 -7 -7 -6 -6 -6 -6 -5 -5 -5 -5 -5 -5 -5 -4 -4 -4 -4 -3 -3 -2 -2 -2 -1 -1 --------- Run | Yrd Mat Min Mat Min Exi Min Mat Gar Mat Gar Fac Gar Fac Low Low Dat Pro Fac Gar Fac Upp Upp Zhi Pro Fac Arm Lab Res Qua Res Tes Sec Acc Com Total 24141 | 63 264 194 724 617 461 176 392 941 116 722 593 712 934 376 425 107 390 1250 740 1145 340 308 217 672 783 994 233 1217 1070 1556 2166 1675 917 651 Wait 2338 | . 3 7 45 25 2 1 50 22 9 13 170 32 76 3 6 . 24 298 20 310 5 . 12 121 178 200 6 111 50 148 172 96 105 18 Move 19033 | 50 243 180 606 556 457 159 292 755 93 626 390 553 761 337 407 104 314 871 605 764 295 296 189 527 524 661 187 955 862 1184 1706 1396 671 457 Hop . | . . . . . . . . . . . . . . . . . . . . . . . . . . . . . . . . . . . Pick Up 172 | 5 3 . 11 4 1 1 14 17 . 6 1 9 11 . 1 . . 9 6 2 . . 3 . 1 5 2 6 11 9 15 12 2 5 Fast Attach 223 | 7 2 1 6 2 . 1 . 1 . 3 1 3 9 . . 1 2 7 1 11 2 . 7 . 7 14 10 14 26 22 30 9 12 12 Attach 103 | . . . 3 . . . 4 2 . . 3 2 6 . 1 . 2 2 2 4 . . . . 2 7 1 3 4 9 17 6 3 20 Detach 36 | . 1 . 1 . . . . . . . . . 3 . . . . . . 3 . . . . . 2 1 2 3 3 8 1 2 6 Swap 168 | 1 . . 5 1 . 2 7 15 3 8 3 6 9 1 1 . 1 10 6 3 3 . . 1 3 9 2 13 8 6 13 5 9 14 Drop 288 | . . 1 7 7 1 3 12 18 . 12 2 9 8 . . 1 2 3 5 7 2 . 6 . 4 15 7 15 37 28 42 15 10 9 Fire 1474 | . 12 3 40 22 . 9 12 48 11 37 23 41 50 26 9 1 37 49 41 40 33 12 . 23 64 62 17 98 57 140 120 131 98 108 Melee 90 | . . . . . . . . 18 . 5 . . . . . . . . . . . . . . . . . . 12 7 43 . 3 2 Ram 2 | . . . . . . . . . . . . . . . . . . 1 . 1 . . . . . . . . . . . . . . Kick 2 | . . 2 . . . . . . . . . . . . . . . . . . . . . . . . . . . . . . . . Crush 6 | . . . . . . . . . . . . . . . . . . . . . . . . . . . . . . . . 4 2 . Escape Stasis 159 | . . . . . . . . 30 . 12 . 55 . . . . 8 . 54 . . . . . . . . . . . . . . . Rewire 46 | . . . . . . . . 15 . . . 2 1 9 . . . . . . . . . . . 19 . . . . . . . . Trap 1 | . . . . . . . 1 . . . . . . . . . . . . . . . . . . . . . . . . . . . Miscellaneous . | . . . . . . . . . . . . . . . . . . . . . . . . . . . . . . . . . . . Route ------- -11/Scrapyard -10/Materials (discovered 3 exits: *Mat x2 / *Min) -10/Mines -9/Materials (discovered 3 exits: *Mat x2 / *Min) -9/Mines (discovered 3 exits: *Mat x2 / *Exi) -9/Exiles -8/Mines -8/Materials (discovered 2 exits: *Fac / Gar) -8/Garrison (discovered 4 exits: *Mat x4) -8/Materials -8/Garrison (discovered 3 exits: *Fac x3) -7/Factory (discovered 3 exits: *Fac / *Low / Gar) -7/Garrison (discovered 3 exits: *Fac x3) -6/Factory (discovered 6 exits: *Fac x4 / *Low x2) -6/Lower Caves -6/Lower Caves (discovered 2 exits: *Fac / *Dat) -6/Data Miner -5/Proximity Caves -5/Factory (discovered 3 exits: *Upp x2 / Gar) -5/Garrison (discovered 3 exits: *Fac x3) -5/Factory (discovered 2 exits: *Upp x2) -5/Upper Caves -5/Upper Caves -5/Zhirov -4/Proximity Caves -4/Factory (discovered 2 exits: Upp / *Arm) -4/Armory (discovered 2 exits: Res / *Lab) -4/Lab -3/Research (discovered 5 exits: Res x3 / *Qua x2) -3/Quarantine -2/Research (discovered 2 exits: *Tes x2) -2/Testing (discovered 2 exits: *Acc / *Sec) -2/Section 7 (discovered 2 exits: *Acc / Gar) -1/Access -1/Command History --------- Turn | Location | Event 6 | -11/Scrapyard | Identified exit to Materials 6 | -11/Scrapyard | Discovered exit to Materials (range 15) 74 | -11/Scrapyard | Entered Materials 74 | -10/Materials | Evolved 1 slot: Utility x1 257 | -10/Materials | Identified exit to Materials 257 | -10/Materials | Discovered exit to Materials (range 10) 310 | -10/Materials | Build established: Hacker-Mutant 311 | -10/Materials | Identified exit to Mines 311 | -10/Materials | Discovered exit to Mines (range 7) 317 | -10/Materials | Discovered exit to Materials (range 16) 409 | -10/Materials | Entered Mines 538 | -10/Mines | Assembled infested the area 543 | -10/Mines | Assisted by a Guerilla fighting off Assembled 628 | -10/Mines | Discovered exit to Materials (range 9) 645 | -10/Mines | Entered Materials 645 | -9/Materials | Evolved 2 slots: Propulsion x1, Utility x1 790 | -9/Materials | Identified exit to Mines 790 | -9/Materials | Discovered exit to Mines (range 8) 915 | -9/Materials | Identified exit to Materials 915 | -9/Materials | Discovered exit to Materials (range 16) 1118 | -9/Materials | Lost 3 parts (1p1u1w) 1331 | -9/Materials | Discovered exit to Materials (range 4) 1624 | -9/Materials | Entered Mines 1654 | -9/Mines | Discovered exit to Materials (range 5) 1695 | -9/Mines | Discovered exit to Materials (range 6) 1757 | -9/Mines | YI-UF0 nonchalantly dropped a Grenade Launcher on the ground 1900 | -9/Mines | Learned Materials trap positions 1902 | -9/Mines | Learned Materials terminal intel 2138 | -9/Mines | Found a hidden stash of uninstalled traps 2388 | -9/Mines | Deemed a non-threat by the Exiles lab entrance 2388 | -9/Mines | Identified exit to Exiles 2388 | -9/Mines | Discovered exit to Exiles (range 6) 2394 | -9/Mines | Entered Exiles 2423 | -9/Exiles | Met 8R-AWN 2444 | -9/Exiles | Met EX-HEX 2501 | -9/Exiles | Met EX-DEC 2524 | -9/Exiles | Visited The Gauntlet 2670 | -9/Exiles | Learned location of Zion (-7) 2710 | -9/Exiles | Met EX-BIN 2937 | -9/Exiles | Identified exit to Mines 2937 | -9/Exiles | Discovered exit to Mines (range 10) 2946 | -9/Exiles | Entered Mines 3073 | -8/Mines | Discovered exit to Materials (range 15) 3172 | -8/Mines | Entered Materials 3172 | -8/Materials | Evolved 2 slots: Utility x1, Weapon x1 3173 | -8/Materials | Loaded intel: 21 trap records 3174 | -8/Materials | Loaded intel: 12 terminal locations 3387 | -8/Materials | Identified exit to Factory 3387 | -8/Materials | Discovered exit to Factory (range 8) 3512 | -8/Materials | Build established: Hacker-Skirmisher 3589 | -8/Materials | Repaired Lgt. Armor Plating 3661 | -8/Materials | Identified exit to Garrison 3662 | -8/Materials | Entered Garrison 3690 | -8/Garrison | Triggered checkpoint 3719 | -8/Garrison | Garrison Relay disabled 3794 | -8/Garrison | Triggered checkpoint 3796 | -8/Garrison | Identified exit to Materials 3796 | -8/Garrison | Discovered exit to Materials (range 5) 3970 | -8/Garrison | Triggered checkpoint 3976 | -8/Garrison | Triggered checkpoint 4020 | -8/Garrison | Triggered checkpoint 4058 | -8/Garrison | Discovered exit to Materials (range 10) 4095 | -8/Garrison | Garrison Relay disabled 4098 | -8/Garrison | Triggered checkpoint 4204 | -8/Garrison | Triggered checkpoint 4286 | -8/Garrison | Rescued a captive Derelict 4287 | -8/Garrison | Rescued a captive Derelict 4353 | -8/Garrison | Discovered exit to Materials (range 9) 4452 | -8/Garrison | Garrison Relay disabled 4508 | -8/Garrison | Triggered checkpoint 4570 | -8/Garrison | Installed Relay Interface Framework 4580 | -8/Garrison | Garrison Relay disabled 4803 | -8/Garrison | Build established: Hacker-Tank 4881 | -8/Garrison | Expanded RIF knowledge: Program Shield 5002 | -8/Garrison | Discovered exit to Materials (range 9) 5086 | -8/Garrison | Triggered checkpoint 5119 | -8/Garrison | Build established: Bothacker-Mutant 5130 | -8/Garrison | Garrison Relay disabled 5172 | -8/Garrison | Entered Materials 5290 | -8/Materials | Garrison activated, responded to threat 5344 | -8/Materials | Identified exit to Garrison 5346 | -8/Materials | Entered Garrison 5346 | -8/Garrison | Accompanied by 2 allies 5386 | -8/Garrison | Triggered checkpoint 5420 | -8/Garrison | Garrison Relay disabled 5534 | -8/Garrison | Triggered checkpoint 5574 | -8/Garrison | Triggered checkpoint 5580 | -8/Garrison | Build established: Bothacker-Tank 5632 | -8/Garrison | Triggered checkpoint 5666 | -8/Garrison | Discovered exit to Factory (range 12) 5666 | -8/Garrison | Discovered exit to Factory (range 45) 5666 | -8/Garrison | Discovered exit to Factory (range 87) 5676 | -8/Garrison | Garrison Relay disabled 5842 | -8/Garrison | Expanded RIF knowledge: Patrol Navigation 5874 | -8/Garrison | Triggered checkpoint 5942 | -8/Garrison | Garrison Relay disabled 5972 | -8/Garrison | Expanded RIF knowledge: Signal Jamming 6271 | -8/Garrison | Garrison Relay disabled 6313 | -8/Garrison | Learned Factory security intel 6452 | -8/Garrison | Entered Factory 6452 | -7/Factory | Accompanied by 5 allies 6452 | -7/Factory | Evolved 2 slots: Utility x2 6455 | -7/Factory | Identified exit to DSF 6673 | -7/Factory | Build established: Botlord-Tank 6864 | -7/Factory | Identified exit to Factory 6864 | -7/Factory | Discovered exit to Factory (range 6) 6938 | -7/Factory | Identified exit to Lower Caves 6938 | -7/Factory | Discovered exit to Lower Caves (range 15) 7004 | -7/Factory | Identified exit to Garrison 7207 | -7/Factory | Entered Garrison 7207 | -7/Garrison | Accompanied by 3 allies 7241 | -7/Garrison | Triggered checkpoint 7263 | -7/Garrison | Garrison Relay disabled 7339 | -7/Garrison | Triggered checkpoint 7347 | -7/Garrison | Triggered checkpoint 7413 | -7/Garrison | Discovered exit to Factory (range 10) 7442 | -7/Garrison | Expanded RIF knowledge: Autoassimilate 7508 | -7/Garrison | Triggered checkpoint 7523 | -7/Garrison | Garrison Relay disabled 7625 | -7/Garrison | Triggered checkpoint 7677 | -7/Garrison | Discovered exit to Factory (range 9) 7715 | -7/Garrison | Triggered checkpoint 7739 | -7/Garrison | Garrison Relay disabled 7869 | -7/Garrison | Triggered checkpoint 7869 | -7/Garrison | Garrison Relay disabled 7953 | -7/Garrison | Triggered checkpoint 7979 | -7/Garrison | Garrison Relay disabled 8092 | -7/Garrison | Found embedded Infiltrators 8113 | -7/Garrison | Discovered exit to Factory (range 5) 8140 | -7/Garrison | Entered Factory 8140 | -6/Factory | Accompanied by 9 allies 8140 | -6/Factory | Evolved 2 slots: Propulsion x1, Utility x1 8185 | -6/Factory | Identified exit to Factory 8231 | -6/Factory | Identified exit to Lower Caves 8359 | -6/Factory | Assimilated ARC 5a with formatsys_deep 8645 | -6/Factory | Spotted B-75 Beast 8654 | -6/Factory | Allies destroyed B-75 Beast 8691 | -6/Factory | Cargo convoy interrupted 8694 | -6/Factory | Assimilated ARC 5b with formatsys_deep 8729 | -6/Factory | Lost 4 allies 8962 | -6/Factory | Repaired Arm. Huge Wheel 8982 | -6/Factory | Garrison activated, responded to threat 9085 | -6/Factory | Lost 3 allies 9190 | -6/Factory | First assault squad dispatched 9252 | -6/Factory | Repaired Lgt. Antimatter Reactor 9304 | -6/Factory | Repaired Imp. KE Penetrator 9407 | -6/Factory | Garrison activated, responded to threat 9446 | -6/Factory | Entered Lower Caves 9446 | -6/Lower Caves | Accompanied by 2 allies 9456 | -6/Lower Caves | Lost 5 allies 9463 | -6/Lower Caves | Encountered a Warlord checkpoint 9650 | -6/Lower Caves | Build established: Botlord-Gunner 9690 | -6/Lower Caves | Learned Factory terminal intel 9856 | -6/Lower Caves | Attacked by a faux Warlord 10013 | -6/Lower Caves | Identified exit to Lower Caves 10013 | -6/Lower Caves | Discovered exit to Lower Caves (range 15) 10085 | -6/Lower Caves | Entered another Lower Caves area 10085 | -6/Lower Caves | Accompanied by 3 allies 10136 | -6/Lower Caves | Discovered exit to Factory (range 15) 10260 | -6/Lower Caves | Attracted the attention of an 0b10 checkpoint 10284 | -6/Lower Caves | Lost 3 allies 10362 | -6/Lower Caves | Learned Factory terminal intel 10428 | -6/Lower Caves | Build established: Botlord-Tank 10471 | -6/Lower Caves | Attracted the attention of an 0b10 base 10724 | -6/Lower Caves | Identified exit to Data Miner 10724 | -6/Lower Caves | Discovered exit to Data Miner (range 16) 10746 | -6/Lower Caves | Entered Data Miner 10747 | -6/Data Miner | Identified exit to Proximity Caves 10747 | -6/Data Miner | Discovered exit to Proximity Caves (range 6) 10772 | -6/Data Miner | Met Data Miner 10802 | -6/Data Miner | Learned location of Section 7 (-2) 10802 | -6/Data Miner | Acquired the access code to Warlord's prototype stash 10825 | -6/Data Miner | Received God Mode back door access code from Data Miner 10886 | -6/Data Miner | Entered Proximity Caves 11024 | -5/Proximity Caves | Spotted B-75 Beast 11043 | -5/Proximity Caves | Destroyed B-75 Beast 11124 | -5/Proximity Caves | Attracted the attention of an 0b10 checkpoint 11356 | -5/Proximity Caves | Build established: Botlord-Gunner 11388 | -5/Proximity Caves | Discovered exit to Factory (range 14) 11462 | -5/Proximity Caves | Entered Factory 11462 | -5/Factory | Accompanied by 1 ally 11462 | -5/Factory | Evolved 2 slots: Utility x2 11463 | -5/Factory | Loaded intel: 24 terminal locations 11535 | -5/Factory | Identified exit to DSF 11712 | -5/Factory | Spotted B-75 Beast 11902 | -5/Factory | Build established: Botlord-Tank 12019 | -5/Factory | Identified exit to Upper Caves 12138 | -5/Factory | Fabricated H-77 Assassin? 12183 | -5/Factory | Repaired Hvy. Treads 12229 | -5/Factory | Repaired Arm. Huge Wheel 12442 | -5/Factory | Fabricated Lgt. Regenerative Plating (x1) 12690 | -5/Factory | Repaired Hvy. Hardcell Cannon 12720 | -5/Factory | Repaired Imp. Kinecellerator 12906 | -5/Factory | Repaired Adv. Cooling System 12932 | -5/Factory | Repaired Lyr. Medium Armor Plating 12961 | -5/Factory | Repaired Hvy. Treads 13058 | -5/Factory | Repaired Arm. Huge Wheel 13181 | -5/Factory | Identified exit to Garrison 13206 | -5/Factory | Entered Garrison 13206 | -5/Garrison | Accompanied by 2 allies 13234 | -5/Garrison | Expanded RIF knowledge: Zone Cloak 13290 | -5/Garrison | Triggered checkpoint 13301 | -5/Garrison | Garrison Relay disabled 13417 | -5/Garrison | Garrison Relay disabled 13418 | -5/Garrison | Triggered checkpoint 13507 | -5/Garrison | Identified exit to Factory 13507 | -5/Garrison | Discovered exit to Factory (range 10) 13571 | -5/Garrison | Phase Generator disabled 13602 | -5/Garrison | Triggered checkpoint 13612 | -5/Garrison | Rewired Striker 13615 | -5/Garrison | Rewired Striker 13718 | -5/Garrison | Triggered checkpoint 13785 | -5/Garrison | Found Relay Coupler [Proto] 13810 | -5/Garrison | Discovered exit to Factory (range 9) 13846 | -5/Garrison | Triggered checkpoint 13880 | -5/Garrison | Garrison Relay disabled 13944 | -5/Garrison | Triggered checkpoint 13964 | -5/Garrison | Triggered checkpoint 14005 | -5/Garrison | Spotted B-90 Cyclops 14009 | -5/Garrison | Spotted B-90 Cyclops 14016 | -5/Garrison | Rewired B-90 Cyclops 14029 | -5/Garrison | Allies destroyed B-90 Cyclops 14037 | -5/Garrison | Allies destroyed B-90 Cyclops 14050 | -5/Garrison | Lost 3 allies 14142 | -5/Garrison | Garrison Relay disabled 14204 | -5/Garrison | Triggered checkpoint 14227 | -5/Garrison | Discovered exit to Factory (range 12) 14259 | -5/Garrison | Found embedded Infiltrators 14278 | -5/Garrison | Entered Factory 14278 | -5/Factory | Accompanied by 4 allies 14279 | -5/Factory | Loaded intel: 26 terminal locations 14362 | -5/Factory | Repaired Arm. Heavy Treads 14425 | -5/Factory | Repaired Rnf. Antimatter Reactor 14537 | -5/Factory | Fabricated Centrium Wheel (x2) 14957 | -5/Factory | Allies destroyed Striker 14989 | -5/Factory | Lost 4 allies 14996 | -5/Factory | Repaired Hvy. Hardcell Cannon 15022 | -5/Factory | Repaired Lyr. Medium Armor Plating 15051 | -5/Factory | Repaired Neutrino Core 15158 | -5/Factory | Repaired Hyb. Antimatter Reactor 15729 | -5/Factory | Entered Upper Caves 15730 | -5/Upper Caves | Encountered a Warlord checkpoint 15733 | -5/Upper Caves | Identified exit to Upper Caves 15753 | -5/Upper Caves | Learned location of Warlord (-4) 15964 | -5/Upper Caves | Learned Factory stockpile data 16053 | -5/Upper Caves | Attracted the attention of an 0b10 base 16065 | -5/Upper Caves | Build established: Botlord-Skirmisher 16187 | -5/Upper Caves | Destroyed 7 combat bots 16225 | -5/Upper Caves | Entered another Upper Caves area 16384 | -5/Upper Caves | Build established: Botlord-Tank 16546 | -5/Upper Caves | Attacked by a delusional Derelict stockpiling parts 16637 | -5/Upper Caves | Identified exit to Zhirov 16637 | -5/Upper Caves | Discovered exit to Zhirov (range 8) 16649 | -5/Upper Caves | Entered Zhirov 16649 | -5/Zhirov | Identified exit to Proximity Caves 16649 | -5/Zhirov | Discovered exit to Proximity Caves (range 3) 16701 | -5/Zhirov | Learned location of Quarantine (-3) 16701 | -5/Zhirov | Learned location of Testing (-2) 16701 | -5/Zhirov | Learned location of Command (-1) 16759 | -5/Zhirov | Found Alien Artifact 16759 | -5/Zhirov | Identified Integrated Dissipator 16759 | -5/Zhirov | Installed Integrated Dissipator, increased core heat dissipation (+20) 16780 | -5/Zhirov | Found Alien Artifact 16924 | -5/Zhirov | Entered Proximity Caves 17073 | -4/Proximity Caves | Learned Research emergency access door positions 17149 | -4/Proximity Caves | Spotter reported a threat 17343 | -4/Proximity Caves | Attracted the attention of an 0b10 base 17516 | -4/Proximity Caves | Learned Extension terminal intel 17516 | -4/Proximity Caves | Learned Research terminal intel 17698 | -4/Proximity Caves | Identified exit to Factory 17698 | -4/Proximity Caves | Discovered exit to Factory (range 7) 17821 | -4/Proximity Caves | Entered Factory 17821 | -4/Factory | Evolved 2 slots: Utility x2 17822 | -4/Factory | Identified exit to Upper Caves 17822 | -4/Factory | Identified exit to Armory 17946 | -4/Factory | Repaired Hvy. Hardcell Cannon 17982 | -4/Factory | Repaired Arm. Heavy Treads 18368 | -4/Factory | Fabricated Adv. Heavy Siege Treads (x1) 18853 | -4/Factory | Repaired Centrium Wheel 19052 | -4/Factory | Entered Armory 19053 | -4/Armory | Destroyed 8 combat bots 19224 | -4/Armory | Fabricated Biometal Heavy Treads (x1) 19309 | -4/Armory | Found Prototype Slashing Weapon 19309 | -4/Armory | Identified Vibroblade 19547 | -4/Armory | Fabricated Imp. Matter Compressor (x1) 19644 | -4/Armory | Fabricated H-77 Assassin (x2) 19965 | -4/Armory | Identified exit to Research 19965 | -4/Armory | Discovered exit to Research (range 7) 20510 | -4/Armory | Identified Transdimensional Reconstructor 20510 | -4/Armory | Warped through subspace to slip node 20510 | -4/Armory | Identified exit to Lab 20510 | -4/Armory | Discovered exit to Lab (range 1) 20511 | -4/Armory | Entered Lab 20511 | -4/Lab | Discovered exit to Research (range 9) 20530 | -4/Lab | Unable to decrypt terminal 20530 | -4/Lab | Opened the door to a hidden lab 20531 | -4/Lab | Gained access to the hidden lab's interior 20531 | -4/Lab | Detected by scanners 20540 | -4/Lab | Confronted by A5 20583 | -4/Lab | Destroyed A5 20623 | -4/Lab | Found Integrated Dissipator 20623 | -4/Lab | Installed Integrated Dissipator, increased core heat dissipation (+20) 20637 | -4/Lab | Found Alien Artifact 20637 | -4/Lab | Identified Core Expander 20637 | -4/Lab | Installed Core Expander, added new Utility slot 20664 | -4/Lab | Found Alien Artifact 20736 | -4/Lab | Found Prototype Special Weapon 20736 | -4/Lab | Identified Gui. Remote Datajack 20759 | -4/Lab | Unable to decrypt terminal 20783 | -4/Lab | Found Deep Network Scanner 20788 | -4/Lab | Found Med. Regenerative Plating 20793 | -4/Lab | Found Prototype Energy Gun 20793 | -4/Lab | Identified Tachyon Dispersion Ray 20798 | -4/Lab | Found Prototype Energy Cannon 20798 | -4/Lab | Identified Warp Cannon 20841 | -4/Lab | Found Transdimensional Reconstructor 20861 | -4/Lab | Unable to decrypt terminal 20874 | -4/Lab | Entered Research 20874 | -3/Research | Evolved 2 slots: Power x1, Weapon x1 20876 | -3/Research | Loaded intel: 24 terminal locations 21294 | -3/Research | Identified Core Reset Matrix 21354 | -3/Research | Intercept squad dispatched 21386 | -3/Research | Spotted Tracker 21387 | -3/Research | Spotted Tracker 21394 | -3/Research | Destroyed Tracker 21396 | -3/Research | Destroyed Tracker 21409 | -3/Research | Found Prototype Device 21409 | -3/Research | Identified Exp. Phase Shifter 21422 | -3/Research | Spotted Combat Programmer 21470 | -3/Research | Spotted Combat Programmer 21475 | -3/Research | Destroyed Combat Programmer 21504 | -3/Research | Spotted B-86 Titan 21517 | -3/Research | Destroyed B-86 Titan 21529 | -3/Research | Destroyed Combat Programmer 21569 | -3/Research | Spotted B-86 Titan 21592 | -3/Research | Allies destroyed B-86 Titan 21624 | -3/Research | First assault squad dispatched 21731 | -3/Research | Lost 3 allies 21765 | -3/Research | Destroyed 7 combat bots 22128 | -3/Research | Intercept squad dispatched 22162 | -3/Research | Spotted Tracker 22162 | -3/Research | Spotted Tracker 22163 | -3/Research | Spotted Tracker 22170 | -3/Research | Destroyed Tracker 22178 | -3/Research | Destroyed Tracker 22181 | -3/Research | Destroyed Tracker 22223 | -3/Research | Spotted Combat Programmer 22225 | -3/Research | Destroyed Combat Programmer 22226 | -3/Research | Spotted Combat Programmer 22239 | -3/Research | Spotted Combat Programmer 22246 | -3/Research | Destroyed Combat Programmer 22260 | -3/Research | Destroyed Combat Programmer 22267 | -3/Research | Fabricated M-36 Artificer? 22406 | -3/Research | Identified exit to Quarantine 22493 | -3/Research | Repaired Adv. Heavy Siege Treads 22532 | -3/Research | Identified exit to Research 22630 | -3/Research | Build established: Botlord-Gunner 22754 | -3/Research | Found Prototype Processor 22754 | -3/Research | Identified Exp. Terrain Scan Processor 22866 | -3/Research | Intercept squad dispatched 22892 | -3/Research | Found Prototype Processor 22892 | -3/Research | Identified Exp. Melee Analysis Suite 22894 | -3/Research | Spotted Tracker 22894 | -3/Research | Spotted Tracker 22897 | -3/Research | Destroyed Tracker 22903 | -3/Research | Destroyed Tracker 22904 | -3/Research | Spotted Combat Programmer 22911 | -3/Research | Combat Programmer assimilated allied Artificer 8a 22916 | -3/Research | Destroyed Combat Programmer 22951 | -3/Research | Spotted Combat Programmer 22959 | -3/Research | Destroyed Combat Programmer 23002 | -3/Research | Entered Quarantine 23031 | -3/Quarantine | Build established: Botlord-Tank 23068 | -3/Quarantine | Local machine network offline 23234 | -3/Quarantine | Found Alien Reactor 23234 | -3/Quarantine | Identified Matter Drive 23357 | -3/Quarantine | Cryocooling Duct disabled 23372 | -3/Quarantine | Ambient heat levels rising (+20) 23372 | -3/Quarantine | Non-combat units ordered to evacuate 23566 | -3/Quarantine | Intercept squad dispatched 23576 | -3/Quarantine | Spotted Tracker 23576 | -3/Quarantine | Spotted Tracker 23594 | -3/Quarantine | Destroyed Tracker 23595 | -3/Quarantine | Spotted Combat Programmer 23597 | -3/Quarantine | Spotted Combat Programmer 23598 | -3/Quarantine | Destroyed Tracker 23609 | -3/Quarantine | Destroyed Combat Programmer 23616 | -3/Quarantine | Destroyed Combat Programmer 23646 | -3/Quarantine | Found Prototype Processor 23646 | -3/Quarantine | Identified Exp. Targeting Computer 23739 | -3/Quarantine | Discovered exit to Research (range 13) 23788 | -3/Quarantine | Found Alien Energy Cannon 23788 | -3/Quarantine | Identified Core Cannon 23819 | -3/Quarantine | Garrison activated, responded to threat 23833 | -3/Quarantine | Found Alien Artifact 23895 | -3/Quarantine | Spotted Alpha 7 23915 | -3/Quarantine | Destroyed Alpha 7 23954 | -3/Quarantine | Build established: Botlord-Gunner 23960 | -3/Quarantine | Found Alien Launcher 23960 | -3/Quarantine | Identified Sigix Terminator 23996 | -3/Quarantine | Found Alien Impact Weapon 23996 | -3/Quarantine | Identified Core Stripper 24066 | -3/Quarantine | Found Alien Slashing Weapon 24066 | -3/Quarantine | Identified Sigix Broadsword 24141 | -3/Quarantine | Found Alien Artifact 24141 | -3/Quarantine | Identified Phase Armor 24181 | -3/Quarantine | Intercept squad dispatched 24189 | -3/Quarantine | Spotted Tracker 24195 | -3/Quarantine | Destroyed Tracker 24207 | -3/Quarantine | Spotted Combat Programmer 24208 | -3/Quarantine | Destroyed Combat Programmer 24267 | -3/Quarantine | Found Alien Artifact 24480 | -3/Quarantine | Build established: Botlord-Tank 24688 | -3/Quarantine | Entered Research 24688 | -2/Research | Evolved 2 slots: Propulsion x2 24794 | -2/Research | Build established: Botlord-Mutant 24959 | -2/Research | Found Exp. Hacking Suite 25158 | -2/Research | Identified exit to Testing 25165 | -2/Research | Found Prototype Device 25165 | -2/Research | Identified Beam Splitter 25229 | -2/Research | Intercept squad dispatched 25235 | -2/Research | Spotted Tracker 25235 | -2/Research | Spotted Tracker 25255 | -2/Research | Destroyed Tracker 25261 | -2/Research | Destroyed Tracker 25303 | -2/Research | Spotted Combat Programmer 25304 | -2/Research | Spotted Combat Programmer 25304 | -2/Research | Destroyed Combat Programmer 25311 | -2/Research | Destroyed Combat Programmer 25384 | -2/Research | Identified Phase Redirector 25384 | -2/Research | Identified Subatomic Replicator 25384 | -2/Research | Exp. Hacking Suite fried by hacking feedback 25559 | -2/Research | Build established: Botlord-Tank 25716 | -2/Research | System corruption reached 10% 25865 | -2/Research | Spotted B-90 Cyclops 25904 | -2/Research | Destroyed B-90 Cyclops 25991 | -2/Research | Intercept squad dispatched 26016 | -2/Research | Spotted Tracker 26016 | -2/Research | Spotted Tracker 26018 | -2/Research | Destroyed Tracker 26018 | -2/Research | Destroyed Tracker 26050 | -2/Research | Spotted Combat Programmer 26056 | -2/Research | Destroyed Combat Programmer 26074 | -2/Research | Spotted Combat Programmer 26085 | -2/Research | Destroyed Combat Programmer 26093 | -2/Research | Found Prototype Energy Gun 26093 | -2/Research | Identified Immobilizer 26188 | -2/Research | First assault squad dispatched 26319 | -2/Research | Build established: Botlord-Gunner 26454 | -2/Research | Fabricated Adv. System Restoration Module (x2) 26460 | -2/Research | Imp. System Shield fried by hacking feedback 26773 | -2/Research | Intercept squad dispatched 26801 | -2/Research | Spotted Tracker 26802 | -2/Research | Spotted Tracker 26807 | -2/Research | Destroyed Tracker 26813 | -2/Research | Destroyed Tracker 26825 | -2/Research | Spotted Combat Programmer 26828 | -2/Research | Destroyed Combat Programmer 26841 | -2/Research | Found Exp. Phase Shifter 26866 | -2/Research | Spotted Combat Programmer 26876 | -2/Research | Destroyed Combat Programmer 26972 | -2/Research | Found Exp. Phase Shifter 26976 | -2/Research | Fabricated Biometal Heavy Treads (x1) 27230 | -2/Research | Found Beam Splitter 27250 | -2/Research | Spotted B-90 Cyclops 27369 | -2/Research | Entered Testing 27522 | -2/Testing | Spotted PX-JIFI4DCIG3 27535 | -2/Testing | Rewired PX-JIFI4DCIG3 27609 | -2/Testing | Found Prototype Launcher 27609 | -2/Testing | Identified Z-bomb Delivery System 27676 | -2/Testing | Spotted Striker 27704 | -2/Testing | Found Ghost Barrier 27858 | -2/Testing | Spotted PL-ZCYD0I2NZH 27867 | -2/Testing | Core integrity fell below 50% 27871 | -2/Testing | Destroyed PL-ZCYD0I2NZH 28286 | -2/Testing | Repaired Adv. Cooling System 28307 | -2/Testing | Build established: Wizard-Gunner 28354 | -2/Testing | Found Prototype Energy Gun 28354 | -2/Testing | Identified Warp Gun 28467 | -2/Testing | Intercept squad dispatched 28469 | -2/Testing | Spotted Tracker 28470 | -2/Testing | Spotted Tracker 28473 | -2/Testing | Destroyed Tracker 28474 | -2/Testing | Garrison activated, responded to threat 28478 | -2/Testing | Destroyed Tracker 28484 | -2/Testing | Spotted Combat Programmer 28485 | -2/Testing | Spotted Combat Programmer 28495 | -2/Testing | Destroyed Combat Programmer 28497 | -2/Testing | Destroyed Combat Programmer 28704 | -2/Testing | Found Prototype Energy Cannon 28704 | -2/Testing | Identified Cld. Nova Cannon 28869 | -2/Testing | First assault squad dispatched 28890 | -2/Testing | Incoming assault squad redirected 28909 | -2/Testing | Fabricated Biometal Heavy Treads (x1) 28916 | -2/Testing | Build established: Wizard-Mutant 29035 | -2/Testing | Identified exit to Access 29035 | -2/Testing | Discovered exit to Access (range 14) 29094 | -2/Testing | Found Prototype Energy Cannon 29094 | -2/Testing | Identified Null Cannon 29497 | -2/Testing | Repaired Biometal Heavy Treads 29630 | -2/Testing | Intercept squad dispatched 29652 | -2/Testing | Spotted Tracker 29656 | -2/Testing | Spotted Tracker 29658 | -2/Testing | Destroyed Tracker 29665 | -2/Testing | Destroyed Tracker 29699 | -2/Testing | Found Prototype Ballistic Cannon 29699 | -2/Testing | Identified Omega Cannon 29705 | -2/Testing | Spotted Combat Programmer 29706 | -2/Testing | Spotted Combat Programmer 29708 | -2/Testing | Destroyed Combat Programmer 29712 | -2/Testing | Destroyed Combat Programmer 29929 | -2/Testing | Spotted Striker 30014 | -2/Testing | Build established: Wizard-Gunner 30349 | -2/Testing | Spotted Fortress 30357 | -2/Testing | Assimilated Fortress with formatsys_high 30493 | -2/Testing | Identified exit to Section 7 30493 | -2/Testing | Discovered exit to Section 7 (range 6) 30504 | -2/Testing | Entered Section 7 30504 | -2/Section 7 | Accompanied by 1 ally 30712 | -2/Section 7 | Spotted S7 Guard 30721 | -2/Section 7 | Destroyed S7 Guard 30759 | -2/Section 7 | Found Alien Artifact 30816 | -2/Section 7 | Found Alien Artifact 30986 | -2/Section 7 | Identified Integrated Thermoelectric Network 30986 | -2/Section 7 | Identified Spacefold Activator 30987 | -2/Section 7 | Installed Integrated Thermoelectric Network, gained heat-energy exchange potential 31037 | -2/Section 7 | Local machine network offline 31249 | -2/Section 7 | Discovered exit to Access (range 11) 31254 | -2/Section 7 | First assault squad dispatched 31280 | -2/Section 7 | Incoming assault squad redirected 31288 | -2/Section 7 | Spotted B-90 Cyclops 31413 | -2/Section 7 | Spotted Alpha 7 31422 | -2/Section 7 | Spotted Alpha 7 31433 | -2/Section 7 | Destroyed Alpha 7 31453 | -2/Section 7 | Destroyed Alpha 7 31456 | -2/Section 7 | Scanned by Researcher 31550 | -2/Section 7 | Core integrity fell below 20% 31594 | -2/Section 7 | Destroyed 10 combat bots 31615 | -2/Section 7 | Intercept squad dispatched 31625 | -2/Section 7 | Spotted Tracker 31626 | -2/Section 7 | Spotted Tracker 31627 | -2/Section 7 | Destroyed Tracker 31630 | -2/Section 7 | Destroyed Tracker 31637 | -2/Section 7 | Spotted Combat Programmer 31645 | -2/Section 7 | Destroyed Combat Programmer 31650 | -2/Section 7 | Spotted Combat Programmer 31650 | -2/Section 7 | Destroyed Combat Programmer 31778 | -2/Section 7 | Incoming assault squad redirected 31885 | -2/Section 7 | Identified exit to Garrison 31980 | -2/Section 7 | Destroyed B-90 Cyclops 32080 | -2/Section 7 | Spotted Executioner 32080 | -2/Section 7 | Spotted Executioner 32089 | -2/Section 7 | Destroyed Executioner 32093 | -2/Section 7 | Destroyed Executioner 32176 | -2/Section 7 | Found Alien Artifact 32190 | -2/Section 7 | Found Alien Artifact 32190 | -2/Section 7 | Identified Terrabomb 32190 | -2/Section 7 | Used Terrabomb 32208 | -2/Section 7 | Found Terrabomb 32287 | -2/Section 7 | Spotted Striker 32401 | -2/Section 7 | Spotted Executioner 32402 | -2/Section 7 | Spotted Executioner 32413 | -2/Section 7 | Destroyed Executioner 32416 | -2/Section 7 | Destroyed Executioner 32479 | -2/Section 7 | Spotted B-99 Colossus 32529 | -2/Section 7 | Incoming assault squad redirected 32529 | -2/Section 7 | Found Alien Artifact 32531 | -2/Section 7 | Found Alien Artifact 32669 | -2/Section 7 | Intercept squad dispatched 32691 | -2/Section 7 | Spotted Tracker 32691 | -2/Section 7 | Spotted Tracker 32692 | -2/Section 7 | Spotted Tracker 32694 | -2/Section 7 | Destroyed Tracker 32698 | -2/Section 7 | Destroyed Tracker 32711 | -2/Section 7 | Destroyed Tracker 32728 | -2/Section 7 | Spotted Combat Programmer 32728 | -2/Section 7 | Destroyed Combat Programmer 32729 | -2/Section 7 | Spotted Combat Programmer 32732 | -2/Section 7 | Destroyed Combat Programmer 32741 | -2/Section 7 | Spotted Combat Programmer 32748 | -2/Section 7 | Destroyed Combat Programmer 32790 | -2/Section 7 | Found Alien Artifact 32798 | -2/Section 7 | Found Alien Artifact 33026 | -2/Section 7 | Entered Access 33026 | -1/Access | Evolved 1 slot: Power x1 33322 | -1/Access | Spotted B-99 Colossus 33356 | -1/Access | Destroyed B-99 Colossus 33437 | -1/Access | Destroyed 7 combat bots 33566 | -1/Access | Fabricated Centrium Heavy Armor Plating (x1) 33618 | -1/Access | Intercept squad dispatched 33630 | -1/Access | Spotted Tracker 33631 | -1/Access | Spotted Tracker 33640 | -1/Access | Destroyed Tracker 33659 | -1/Access | Spotted Combat Programmer 33660 | -1/Access | Spotted Combat Programmer 33668 | -1/Access | Destroyed Combat Programmer 33719 | -1/Access | Identified exit to Command 34026 | -1/Access | First assault squad dispatched 34153 | -1/Access | Spotted B-99 Colossus 34325 | -1/Access | Intercept squad dispatched 34349 | -1/Access | Spotted Tracker 34349 | -1/Access | Spotted Tracker 34352 | -1/Access | Destroyed Tracker 34357 | -1/Access | Destroyed Tracker 34420 | -1/Access | Entered Command 34661 | -1/Command | Used Subatomic Replicator to replicate Alien Artifact 34664 | -1/Command | Identified LRC Insulator 34664 | -1/Command | Installed LRC Insulator, gained EM resistance (25) 34667 | -1/Command | Installed LRC Insulator, gained EM resistance (25) 34668 | -1/Command | Identified LRC Matter Compressor 34668 | -1/Command | Installed LRC Matter Compressor, increased matter storage capacity (+125) 34669 | -1/Command | Identified Integrity Redistributor (x2) 34669 | -1/Command | Used Integrity Redistributor, redistributed integrity from core (-171) 34896 | -1/Command | Found Exp. Core Analyzer 34900 | -1/Command | Found Exp. Core Analyzer 34920 | -1/Command | First assault squad dispatched 34938 | -1/Command | Disengaged cave seal 34938 | -1/Command | Wild derelicts emerged from the dark tunnel 35014 | -1/Command | Destroyed 8 combat bots 35285 | -1/Command | Destroyed 11 combat bots 35316 | -1/Command | Fired Sigix Terminator 35316 | -1/Command | High security lockdown imminent 35316 | -1/Command | MAIN.C activated Command garrisons 35401 | -1/Command | Lost 3 parts (2n1u) 35413 | -1/Command | Used Integrity Redistributor, redistributed integrity from core (-465) 35414 | -1/Command | Core integrity fell below 50% 35462 | -1/Command | Identified Hpw. Transdimensional Reconstructor 35462 | -1/Command | Failed to warp due to unstable space 35464 | -1/Command | Destroyed 143 combat bots 35488 | -1/Command | Core integrity fell below 20% 35504 | -1/Command | Phase Generator disabled 35504 | -1/Command | Used Terrabomb 35513 | -1/Command | Released all parts (12) 35517 | -1/Command | Destroyed by P-80 Master with Gamma Rifle Last Messages --------------- 35512_ K-01 Serf collects debris. 35512_ Penetrated by Slug. 35513_ Activated siege mode. 35513_ Penetrated by Slug. 35513_ Released Adv. Weapon Cycler. 35513_ Released Exp. Core Analyzer. 35513_ Released Hcp. Storage Unit. 35513_ Released Adv. Target Analyzer. 35513_ Released Exp. Core Analyzer. 35513_ Released Imp. Armor Integrity Analyzer. 35513_ Released Ghost Barrier. 35513_ Released Adv. Corruption Screen. 35513_ Released Prc. Phase Gun. 35513_ Released Biometal Heavy Treads. 35513_ Released Graphene Brace. 35513_ Released Lgt. Quantum Reactor. 35514_ Penetrated by Slug. 35514_ P-80 Master resets H-88 Terminator, system corruption cleaned. 35514_ Penetrated by Slug. 35515_ K-01 Serf collects debris. Map ----- +----------------------------------------------------+ | ?????????????????????????????????????????????????? | | ?????????????????????????????????????????????????? | | ?????????????????????????????????????????????????? | | ?????????????????????????????????????????????????? | | ?????????????????????????????????????????????????? | | ?????????????????????????????????????????????????? | | ?????????????????????????????????????????????????? | | ?????????????????????????????????????????????????? | | ?????????????????????????????????????????????????? | | ?????????????????????????????????????????????????? | | ??????????????????????? ???????????????????????? | | ????????????????????? ? ? ????????????????????? | | ????????????????????? ? ? ????????????????????? | | ????????????????; ??? ? ????????????????????? | | ??????????????;;;;"?;+;;;;#;#????????????????????? | | ??????????? ;;;;; ; ????????????????????? | | ???????????% "" ; ????#???????????????? | | ??????????? "T + ""? ##??????????????? | | ??????????? ;;;;; ; """" ;##?????????????? | | ??????????" ;; ;;;;;; """" ; ##????????????? | | ????????? " ; ; "" ; #????????????? | | ???????? " ;;;;;;;; ; ; ##???????????? | | ???????? " ; !! ; ; ; #???????????? | | #?????? ; ; ! /! ; ;;;;;;;;;;; ##??????????? | | ?????? ; ; ; #??????????? | | ##???? ;% ;[! ;;;;;@ #??????????? | | #???? " +%= # ; #?????????? | | ##??? " %=[ ;;; ; #?????????? | | # #? " = ;;/;;;;;;;;;; #?????????? | | # # #"""" =%[ !p!h %[ ; #?????????? | | "%= " !% !!gh= ; ??????????? | | #[==!% = %g!g%=[ ; ??????????? | | =!![[%[[= = =[=h%h!=!* ; ?????###??? | | #%=[[=|* % !=h!!= ; ??????# #??? | | %%!=%[=*!%%=[ ;;;;;!;;;;;;; ?##??##"##?? | | %![%%%%=%!%!!= ;;;;;; ;;;;;;## #??#=%!### | | |!*[*%[%*!%% ; !;;;;;;;;;; ;#"#####%* | | !%=![[%[%= % "";; * "" % !=%!""# | | " #"![=[[% =%!" |%= "T ######### ##?? | | " !! !% ! " ! =;;;;;;;;"" #???????# #??? | | "*%=% = % "";;;;;" """#######???# #??? | | #" = " " ] "" """""#### !#####*#### | | # ###"##" " !*= "" + = =%! | | ##?##?? " =%!%!"" ! """###### #####=#### | | #?????????" !!!%"" "???????#####???#%#??? | | ??????????# ==*" #???????????###?#*#??? | | ??????????# %* ]%=!* #############"###!#??? | | ??????????# = %+ !%" %[= #??? | | ??????????#####+## " # %! ! ##"#%##?? | | ?????????????????# ##+###"*%= ####!"#?? | +----------------------------------------------------+ Best States ------------- Heat Dissipation 158 Energy Generation 65 Energy Capacity 1100 Matter Stores 600 Matter Capacity 600 Sight Range 20 Robot Scan Range 15 Terrain Scan Range 16 Terrain Scan Density 10 Corruption Block 20 Armor Coverage 1500 Resistance: KI 65 Resistance: TH 100 Resistance: EX 35 Resistance: EM 35 Resistance: I 35 Resistance: S 35 Resistance: P 35 Utility Shielding 66 Weapon Cycling 25 Phase Shifting 20 Evasion (%) 60 Targeting Accuracy 12 Target Analysis 12 Core Analysis 12 Armor Integrity Analysis 40 Recoil Reduction 6 Kinecelleration 40 Offensive Hacking 61 Defensive Hacking 34 Relay Coupler Types 5 Relay Coupler Value 202 Authchip Count 1 Item Schematics ----------------- Lgt. Nuclear Core | -9/Materials | Scanalyzed Hcp. Storage Unit | -7/Factory | Scanalyzed Combat Drone Bay | -6/Data Miner | Free Lgt. Regenerative Plating | -6/Data Miner | Free Enh. Flexi-carbon Leg | -6/Data Miner | Free Imp. Matter Compressor | -6/Data Miner | Free Hvy. Gatling Laser | -6/Data Miner | Free Centrium Wheel | -6/Data Miner | Free Graphene Brace | -6/Data Miner | Free Hvy. Disruptor Cannon | -6/Data Miner | Free Imp. Arc Projector | -6/Data Miner | Free Particle Reactor | -6/Data Miner | Free Adv. System Restoration Module | -5/Factory | Scanalyzed Quantum Rifle | -5/Factory | Hacked Assault Drone Bay | -5/Zhirov | Free Exp. Heat Sink | -5/Zhirov | Free Exp. Optical Array | -5/Zhirov | Free Imp. Arc Thrower | -5/Zhirov | Free Biometal Heavy Treads | -4/Factory | Hacked Enh. Nova Cannon | -4/Armory | Hacked Adv. Remote Datajack | -2/Research | Scanalyzed Centrium Heavy Armor Plating | -2/Testing | Archive Exp. Q-thruster | -2/Testing | Archive Spectral Analyzer | -2/Testing | Archive Cld. Field Propulsion Drive | -2/Testing | Archive Exp. Coolant Injector | -2/Testing | Archive Imp. Q-thruster | -2/Testing | Archive Adv. Thermal Defense Suite | -2/Testing | Archive Hdn. Centrium Leg | -2/Testing | Archive Proton Burst Cannon | -2/Testing | Archive Cld. Antigrav System | -2/Testing | Archive Lrn. Tractor Beam | -2/Testing | Scanalyzed Beam Splitter | -2/Testing | Scanalyzed Imp. Energy Well | -2/Section 7 | Archive Exp. Thermal Generator | -2/Section 7 | Archive Exp. Target Analyzer | -2/Section 7 | Archive Ionic Axe | -2/Section 7 | Archive Prc. Phase Gun | -2/Section 7 | Archive Mni. Fusion Reactor | -2/Section 7 | Archive Lgt. Antimatter Cannon | -2/Section 7 | Archive Robot Schematics ------------------ G-50 Soldier | -6/Data Miner | Free L-41 Fighter | -6/Data Miner | Free A-15 Conveyor | -6/Data Miner | Free S-27 Virus | -6/Data Miner | Free H-77 Assassin | -6/Data Miner | Free M-36 Artificer | -6/Data Miner | Free L-61 Swordsman | -6/Data Miner | Free M-30 Cleanser | -6/Data Miner | Free T-07 Excavator | -2/Testing | Archive K-01 Serf | -2/Testing | Archive A-27 Freighter | -2/Testing | Archive R-06 Scavenger | -2/Testing | Archive G-67 Veteran | -2/Section 7 | Hacked B-74 Champion | -2/Section 7 | Archive S-43 Plague | -2/Section 7 | Archive Fabricated ------------ H-77 Assassin | x2 | -5/Factory | Authchip Lgt. Regenerative Plating | x1 | -5/Factory Centrium Wheel | x2 | -5/Factory Adv. Heavy Siege Treads | x1 | -4/Factory | Preloaded Biometal Heavy Treads | x1 | -4/Armory Imp. Matter Compressor | x1 | -4/Armory H-77 Assassin | x2 | -4/Armory | Authchip M-36 Artificer | x1 | -3/Research Adv. System Restoration Module | x2 | -2/Research Biometal Heavy Treads | x1 | -2/Research Biometal Heavy Treads | x1 | -2/Testing Centrium Heavy Armor Plating | x1 | -1/Access Alien Tech Used ----------------- Integrated Dissipator Transdimensional Reconstructor Core Expander Matter Drive Core Cannon Sigix Terminator Core Stripper Sigix Broadsword Phase Armor Integrated Thermoelectric Network Spacefold Activator Terrabomb Phase Redirector Subatomic Replicator LRC Insulator LRC Matter Compressor Integrity Redistributor High-powered Transdimensional Reconstructor Achievements -------------- None Challenges ------------ None Game ------ Seed IonicThiefCasing Manual? 0 Play Time 07:50:55 Cumulative 373.7 hours Start 2024.04.22 @ 22:21:11 End 2024.04.28 @ 21:09:31 Sessions 7 Manual Loads 0 Difficulty Explorer Special Mode None Game No. 63 Rogue 13 Adventurer 45 Explorer 5 Win Type - Total 20 Types 8/0/5/4/1/0/1/1/0 Lore% 77 Gallery% 83 Achievement% 78 Wizard Run 0 Options --------- Layout 0 ASCII 0 Keyboard 0 Movement Numpad Keybinds 0 Fullscreen 1 Font 24/Smallcaps Map View 76x50 Zoom Use 0% Tactical HUD 1 Map Filters NONE Filters NONE Steam 1 RUN: 94c7e57d-5880-470a-8338-cf6df252c375